Workbook

Sheet AÇIKLAMA

Sheet BİLGİ GİRİŞİ
D5: DOĞRUDAN TEMİN PROGRAMI
D7: Üst İdare Adı | O7: BULANIK KAYMAKAMLIĞI
D8: İdare Adı | O8: Atatürk İlkokulu Müdürlüğü | AN8: ne
D9: Mal/Hizmet/Yapım Adı, Niteliği | O9: Bilişim Malzemeleri Alımı
D10: Alım/Temin Usulü | O10: 22/d
D11: DTN (Doğrudan Temin Numarası) | O11: 22DT1211930
AB12: Bütçe Tertibi | AJ12: 6.98.255.9436.13.67.01.03.05.30.02
D13: NO | E13: BELGE ADI/ BELGE AÇ | O13: TARİHİ | S13: ÖNİZLEME | W13: YAZDIRMA | AB13: Kullanılabilir Ödenek Tutarı | AJ13: 45000
D14: 1 | E14: Alım/Görevlendirme Oluru
E15: Alım/Görevlendirme Oluru Tarihi-Sayısı >> | O15: 2023-03-06 | S15: 456789123 | AB15: PİYASA ARAŞTIRMA GÖREVLİLERİ
D16: 2 | E16: Yaklaşık Maliyet Araştırma Yazısı | O16: 2023-03-06 | AB16: Piyasa Araştırma Görevlisi | AH16: Piyasa Araştırma Görevlisi | AN16: Piyasa Araştırma Görevlisi | AT16: OLUR/UYGUNDUR
D17: 3 | E17: Yaklaşık Maliyet Hesap Cetveli | O17: 2023-03-07 | AB17: Ahmet DEMİR | AH17: Ayşe YILDIZ | AT17: Mustafa AYDIN
D18: 4 | E18: Doğrudan Temin Onay Belgesi | O18: 2023-03-06 | AB18: Müdür Yardımcısı 1 | AH18: Öğretmen 1 | AT18: Okul Müdürü
D19: 5 | E19: Teklif Vermeye Davet Yazısı | O19: 2023-03-06
E20: Teklif Geçerlilik Tarihi >> | O20: 2023-03-08 | AB20: MUAYENE VE KABUL GÖREVLİLERİ
D21: 6 | E21: İdari veTeknik Şartlar | AB21: Muayene ve Kabul Görevlisi | AH21: Muayene ve Kabul Görevlisi | AN21: Muayene ve Kabul Görevlisi | AT21: OLUR/UYGUNDUR
D22: 7 | E22: Piyasa Araştırma Tutanağı | O22: 2023-03-08 | AB22: Mehmet ÇELİK | AH22: Fatma GÜNEŞ | AT22: Mustafa AYDIN
D23: 8 | E23: Muayene ve Kabul Tutanağı | O23: 2023-03-08 | AB23: Müdür Yardımcısı 2 | AH23: Öğretmen 2 | AT23: Okul Müdürü
AB25: YAKLAŞIK MALİYET ARAŞTIRMASI
D27: MAL'IN/HİZMET'İN/YAPIM İŞİ'NİN | AB27: ARAŞTIRMA YAPILAN KİŞİLER/FİRMALAR VE VERDİKLERİ FİYATLAR (KDV HARİÇ)
D28: S | E28: =IF((COUNTIF(BA30:BA49,"*x*"))>=1,"Bu alanda (x ile işaretlenen satırda) hücrelerin birinde veya birkaçında fazla veri var! Siliniz!","ADI") -> ADI | T28: MİKTARI | W28: BİRİMİ | Z28: KDV (%) | AB28: A GERÇEK/TÜZEL KİŞİSİ | AJ28: B GERÇEK/TÜZEL KİŞİSİ | AR28: C GERÇEK/TÜZEL KİŞİSİ | BN28: 1 | BO28: 1
AB29: Birim Fiyatı | AF29: Toplam Fiyatı | AJ29: Birim Fiyatı | AN29: Toplam Fiyatı | AR29: Birim Fiyatı | AV29: Toplam Fiyatı
D30: =IF(E30="","",1) -> 1 | E30: AIO (All In One) Masaüstü Bilgisayar | T30: 20 | W30: Adet | Z30: 20 | AB30: 14000 | AF30: =IF(AB30="","",T30*AB30) -> 280000 | AJ30: 12000 | AN30: =IF(AJ30="","",T30*AJ30) -> 240000 | AR30: 13000 | AV30: =IF(AR30="","",T30*AR30) -> 260000 | BA30: =IF(E30="",IF(OR(T30<>"",W30<>"",Z30<>"",AB30<>"",AJ30<>"",AR30<>""),"x",""),"✓") -> ✓
D31: =IF(E31="","",2) -> 2 | E31: Fotokopi Makinesi | T31: 10 | W31: Adet | Z31: 10 | AB31: 11000 | AF31: =IF(AB31="","",T31*AB31) -> 110000 | AJ31: 9000 | AN31: =IF(AJ31="","",T31*AJ31) -> 90000 | AR31: 10000 | AV31: =IF(AR31="","",T31*AR31) -> 100000 | BA31: =IF(E31="",IF(OR(T31<>"",W31<>"",Z31<>"",AB31<>"",AJ31<>"",AR31<>""),"x",""),"✓") -> ✓
D32: =IF(E32="","",3) -> 3 | E32: Projektör | T32: 4 | W32: Adet | Z32: 1 | AB32: 8000 | AF32: 32000 | AJ32: 6000 | AN32: 24000 | AR32: 7000 | AV32: 28000 | BA32: ✓
D33: =IF(E33="","",4) -> 
D34: =IF(E34="","",5) -> 
D35: =IF(E35="","",6) -> 
D36: =IF(E36="","",7) -> 
D37: =IF(E37="","",8) -> 
D38: =IF(E38="","",9) -> 
D39: =IF(E39="","",10) -> 
D40: =IF(E40="","",11) -> 
D41: =IF(E41="","",12) -> 
D42: =IF(E42="","",13) -> 
D43: =IF(E43="","",14) -> 
D44: =IF(E44="","",15) -> 
D45: =IF(E45="","",16) -> 
D46: =IF(E46="","",17) -> 
D47: =IF(E47="","",18) -> 
D48: =IF(E48="","",19) -> 
D49: =IF(E49="","",20) -> 
D50: TOPLAM (KDV Hariç) | AB50: =SUM(AB30:AB49) -> 33000 | AF50: =SUM(AF30:AF49) -> 422000 | AJ50: =SUM(AJ30:AJ49) -> 27000 | AN50: =SUM(AN30:AN49) -> 354000 | AR50: =SUM(AR30:AR49) -> 30000 | AV50: =SUM(AV30:AV49) -> 388000
AB52: PİYASA FİYAT ARAŞTIRMASI
D54: MAL'IN/HİZMET'İN/YAPIM İŞİ'NİN | AB54: TEKLİF VEREN KİŞİLER/FİRMALAR VE TEKLİF FİYATLARI (KDV HARİÇ)
D55: S | E55: =IF((COUNTIF(BA57:BA76,"*x*"))>=1,"Bu alanda (x ile işaretlenen satırda) hücrelerin birinde veya birkaçında fazla veri var! Siliniz!","ADI") -> ADI | T55: BİRİMİ | W55: MİKTARI | Z55: KDV (%) | AB55: A GERÇEK/TÜZEL KİŞİSİ | AJ55: B GERÇEK/TÜZEL KİŞİSİ | AR55: D GERÇEK/TÜZEL KİŞİSİ | BC55: =AB55 -> A GERÇEK/TÜZEL KİŞİSİ | BF55: =AJ55 -> B GERÇEK/TÜZEL KİŞİSİ | BI55: =AR55 -> D GERÇEK/TÜZEL KİŞİSİ
AB56: Birim Fiyatı | AF56: Toplam Fiyatı | AJ56: Birim Fiyatı | AN56: Toplam Fiyatı | AR56: Birim Fiyatı | AV56: Toplam Fiyatı | BC56: 20 | BD56: 10 | BE56: 1 | BF56: 20 | BG56: 10 | BH56: 1 | BI56: 20 | BJ56: 10 | BK56: 1
D57: =IF(D30="","",D30) -> 1 | E57: =IF(E30="","",E30) -> AIO (All In One) Masaüstü Bilgisayar | T57: =IF(T30="","",T30) -> 20 | W57: =IF(W30="","",W30) -> Adet | Z57: =IF(Z30="","",Z30) -> 20 | AB57: 13000 | AF57: =IF(AB57="","",T57*AB57) -> 260000 | AJ57: 11000 | AN57: =IF(AJ57="","",T57*AJ57) -> 220000 | AR57: 12000 | AV57: =IF(AR57="","",T57*AR57) -> 240000 | BA57: =IF(E57="",IF(OR(AB57<>"",AJ57<>"",AR57<>""),"x",""),"✓") -> ✓ | BC57: =IF(AF57="","",IF(Z57=20,(AF57*20/100),"")) -> 52000 | BD57: =IF(AF57="","",IF(Z57=10,(AF57*10/100),"0")) -> 0 | BE57: =IF(AF57="","",IF(Z57=1,(AF57*1/100),"")) ->  | BF57: =IF(AN57="","",IF(Z57=20,(AN57*20/100),"")) -> 44000 | BG57: =IF(AN57="","",IF(Z57=10,(AN57*10/100),"")) ->  | BH57: =IF(AN57="","",IF(Z57=1,(AN57*1/100),"")) ->  | BI57: =IF(AV57="","",IF(Z57=20,(AV57*20/100),"")) -> 48000 | BJ57: =IF(AV57="","",IF(Z57=10,(AV57*10/100),"")) ->  | BK57: =IF(AV57="","",IF(Z57=1,(AV57*1/100),"")) -> 
D58: =IF(D31="","",D31) -> 2 | E58: =IF(E31="","",E31) -> Fotokopi Makinesi | T58: =IF(T31="","",T31) -> 10 | W58: =IF(W31="","",W31) -> Adet | Z58: =IF(Z31="","",Z31) -> 10 | AB58: 10000 | AF58: =IF(AB58="","",T58*AB58) -> 100000 | AJ58: 9000 | AN58: =IF(AJ58="","",T58*AJ58) -> 90000 | AR58: 9000 | AV58: =IF(AR58="","",T58*AR58) -> 90000 | BA58: =IF(E58="",IF(OR(AB58<>"",AJ58<>"",AR58<>""),"x",""),"✓") -> ✓ | BC58: =IF(AF58="","",IF(Z58=20,(AF58*20/100),"")) ->  | BD58: =IF(AF58="","",IF(Z58=10,(AF58*10/100),"0")) -> 10000 | BE58: =IF(AF58="","",IF(Z58=1,(AF58*1/100),"")) ->  | BF58: =IF(AN58="","",IF(Z58=20,(AN58*20/100),"")) ->  | BG58: =IF(AN58="","",IF(Z58=10,(AN58*10/100),"")) -> 9000 | BH58: =IF(AN58="","",IF(Z58=1,(AN58*1/100),"")) ->  | BI58: =IF(AV58="","",IF(Z58=20,(AV58*20/100),"")) ->  | BJ58: =IF(AV58="","",IF(Z58=10,(AV58*10/100),"")) -> 9000 | BK58: =IF(AV58="","",IF(Z58=1,(AV58*1/100),"")) -> 
D59: 3 | E59: Projektör | T59: 4 | W59: Adet | Z59: 1 | AB59: 7000 | AF59: 28000 | AJ59: 6000 | AN59: 24000 | AR59: 7000 | AV59: 28000 | BA59: ✓ | BD59: 0 | BE59: 280 | BH59: 240 | BK59: 280
BC60: =IF(AF60="","",IF(Z60=20,(AF60*20/100),"")) ->  | BI60: =IF(AV60="","",IF(Z60=20,(AV60*20/100),"")) -> 
D77: TOPLAM | AB77: =SUM(AB57:AB76) -> 30000 | AF77: =SUM(AF57:AF76) -> 388000 | AJ77: =SUM(AJ57:AJ76) -> 26000 | AN77: =SUM(AN57:AN76) -> 334000 | AR77: =SUM(AR57:AR76) -> 28000 | AV77: =SUM(AV57:AV76) -> 358000 | BC77: =SUM(BC57:BC76) -> 52000 | BD77: 10000 | BE77: 280 | BF77: 44000 | BG77: 9000 | BH77: 240 | BI77: 48000 | BJ77: 9000 | BK77: 280
D79: EN UYGUN (DÜŞÜK) TEKLİFİ VEREN KİŞİ/FİRMA
D80: ADI | T80: ADRESİ | AF80: TEKLİFİ | AJ80: KDV (%20) | AN80: KDV (%10) | AR80: KDV (%1) | AV80: TOPLAM
D81: =IF(AND(AF77<AN77,AF77<AV77),AB55,(IF(AND(AN77<AF77,AN77<AV77),AJ55,(IF(AND(AV77<AF77,AV77<AN77),AR55,""))))) -> B GERÇEK/TÜZEL KİŞİSİ | T81: Bulanık/MUŞ | AF81: =IF(D81=AB55,AF77,IF(D81=AJ55,AN77,IF(D81=AR55,AV77,""))) -> 334000 | AJ81: =IF(D81=AB55,BC77,IF(D81=AJ55,BF77,IF(D81=AR55,BI77,""))) -> 44000 | AN81: =IF(D81=AB55,BD77,IF(D81=AJ55,BG77,IF(D81=AR55,BJ77,""))) -> 9000 | AR81: =IF(D81=AB55,BE77,IF(D81=AJ55,BH77,IF(D81=AR55,BK77,""))) -> 240 | AV81: =IF(D81="","",(AF81+AJ81+AN81+AR81)) -> 387240
V83: Birim Fiyat Teklif Mektuplarına Şartlar Eklenecekse Aşağıdaki Alanlara Şartlar Girilecektir. Aksi durumda silinmelidir.
D85: İDARİ ŞARTLAR
D86: =IF(E86="","",1) -> 1 | E86: Bu bent boş bırakılmıştır.
D87: =IF(E87="","",2) -> 
D88: =IF(E88="","",3) -> 
D89: =IF(E89="","",4) -> 
D90: =IF(E90="","",5) -> 
D91: =IF(E91="","",6) -> 
D92: =IF(E92="","",7) -> 
D93: =IF(E93="","",8) -> 
D94: =IF(E94="","",9) -> 
D95: =IF(E95="","",10) -> 
D96: =IF(E96="","",11) -> 
D97: =IF(E97="","",12) -> 
D98: =IF(E98="","",13) -> 
D99: =IF(E99="","",14) -> 
D100: =IF(E100="","",15) -> 
D102: TEKNİK ŞARTLAR
D103: =IF(E103="","",1) -> 1 | E103: Bu bent boş bırakılmıştır.
D104: =IF(E104="","",D103+1) -> 
D105: =IF(E105="","",3) -> 
D106: =IF(E106="","",4) -> 
D107: =IF(E107="","",5) -> 
D108: =IF(E108="","",6) -> 
D109: =IF(E109="","",7) -> 
D110: =IF(E110="","",8) -> 
D111: =IF(E111="","",9) -> 
D112: =IF(E112="","",10) -> 
D113: =IF(E113="","",11) -> 
D114: =IF(E114="","",12) -> 
D115: =IF(E115="","",13) -> 
D116: =IF(E116="","",14) -> 
D117: =IF(E117="","",15) -> 
D118: =IF(E118="","",16) -> 
D119: =IF(E119="","",17) -> 
D120: =IF(E120="","",18) -> 
D121: =IF(E121="","",19) -> 
D122: =IF(E122="","",20) -> 

Sheet 1
A2: T.C.
A3: =IF('BİLGİ GİRİŞİ'!O7="","",'BİLGİ GİRİŞİ'!O7) -> BULANIK KAYMAKAMLIĞI
A4: =IF('BİLGİ GİRİŞİ'!O8="","",'BİLGİ GİRİŞİ'!O8) -> Atatürk İlkokulu Müdürlüğü
A6: Sayı | D6: : | E6: =IF('BİLGİ GİRİŞİ'!S15="","",'BİLGİ GİRİŞİ'!S15) -> 456789123 | Y6: =IF('BİLGİ GİRİŞİ'!O15="","…../…../……..",'BİLGİ GİRİŞİ'!O15) -> 2023-03-06
A7: Konu | D7: : | E7: Mal Alımı/Hizmet Alımı/Yapım İşi
A10: =IF('BİLGİ GİRİŞİ'!O8="","",CONCATENATE(UPPER('BİLGİ GİRİŞİ'!O8)," HARCAMA YETKİLİSİ MAKAMINA",)) -> ATATÜRK İLKOKULU MÜDÜRLÜĞÜ HARCAMA YETKİLİSİ MAKAMINA
A12: =CONCATENATE(" ","Kurumumuz ihtiyaçlarında kullanılmak üzere aşağıda bilgileri verilen Mal'ın/Hizmet'in/Yapım İşi'nin Kamu İhale Kanunu'nun ",IF('BİLGİ GİRİŞİ'!O10="",".............................................................................",'BİLGİ GİRİŞİ'!O10)," Maddesine göre Doğrudan Temin yoluyla satın alınması ve aşağıda bilgileri verilen personellerin piyasa araştırma , muayene ve kabul görevlisi olarak görevlendirilmesi hususunu; Olurlarınıza arz ederim/ederiz.") -> Kurumumuz ihtiyaçlarında kullanılmak üzere aşağıda bilgileri verilen Mal'ın/Hizmet'in/Yapım İşi'nin Kamu İhale Kanunu'nun 22/d Maddesine göre Doğrudan Temin yoluyla satın alınması ve aşağıda bilgileri verilen personellerin piyasa araştırma , muayene ve kabul görevlisi olarak görevlendirilmesi hususunu; Olurlarınıza arz ederim/ederiz.
T17: =IF('BİLGİ GİRİŞİ'!AB17="","",'BİLGİ GİRİŞİ'!AB17) -> Ahmet DEMİR
T18: =IF(T17="","",IF('BİLGİ GİRİŞİ'!AB18="","",'BİLGİ GİRİŞİ'!AB18)) -> Müdür Yardımcısı 1
J21: =IF(J22="","",IF('BİLGİ GİRİŞİ'!AT16="","",'BİLGİ GİRİŞİ'!AT16)) -> OLUR/UYGUNDUR
J22: =IF('BİLGİ GİRİŞİ'!AT17="","",'BİLGİ GİRİŞİ'!AT17) -> Mustafa AYDIN
J23: =IF(J22="","",IF('BİLGİ GİRİŞİ'!AT18="","",'BİLGİ GİRİŞİ'!AT18)) -> Okul Müdürü
A26: MAL'IN/HİZMET'İN/YAPIM İŞİ'NİN
A27: S | B27: Kalem/KısımBilgileri | X27: Birimi | AB27: Miktarı
A28: =IF('BİLGİ GİRİŞİ'!D30="","",'BİLGİ GİRİŞİ'!D30) -> 1 | B28: =IF('BİLGİ GİRİŞİ'!E30="","",'BİLGİ GİRİŞİ'!E30) -> AIO (All In One) Masaüstü Bilgisayar | X28: =IF('BİLGİ GİRİŞİ'!W30="","",'BİLGİ GİRİŞİ'!W30) -> Adet | AB28: =IF('BİLGİ GİRİŞİ'!T30="","",'BİLGİ GİRİŞİ'!T30) -> 20
A29: =IF('BİLGİ GİRİŞİ'!D31="","",'BİLGİ GİRİŞİ'!D31) -> 2 | B29: =IF('BİLGİ GİRİŞİ'!E31="","",'BİLGİ GİRİŞİ'!E31) -> Fotokopi Makinesi | X29: =IF('BİLGİ GİRİŞİ'!W31="","",'BİLGİ GİRİŞİ'!W31) -> Adet | AB29: =IF('BİLGİ GİRİŞİ'!T31="","",'BİLGİ GİRİŞİ'!T31) -> 10
A30: =IF('BİLGİ GİRİŞİ'!D32="","",'BİLGİ GİRİŞİ'!D32) -> 3 | B30: =IF('BİLGİ GİRİŞİ'!E32="","",'BİLGİ GİRİŞİ'!E32) -> Projektör | X30: =IF('BİLGİ GİRİŞİ'!W32="","",'BİLGİ GİRİŞİ'!W32) -> Adet | AB30: =IF('BİLGİ GİRİŞİ'!T32="","",'BİLGİ GİRİŞİ'!T32) -> 4
A31: =IF('BİLGİ GİRİŞİ'!D33="","",'BİLGİ GİRİŞİ'!D33) ->  | B31: =IF('BİLGİ GİRİŞİ'!E33="","",'BİLGİ GİRİŞİ'!E33) ->  | X31: =IF('BİLGİ GİRİŞİ'!W33="","",'BİLGİ GİRİŞİ'!W33) ->  | AB31: =IF('BİLGİ GİRİŞİ'!T33="","",'BİLGİ GİRİŞİ'!T33) -> 
A32: =IF('BİLGİ GİRİŞİ'!D34="","",'BİLGİ GİRİŞİ'!D34) ->  | B32: =IF('BİLGİ GİRİŞİ'!E34="","",'BİLGİ GİRİŞİ'!E34) ->  | X32: =IF('BİLGİ GİRİŞİ'!W34="","",'BİLGİ GİRİŞİ'!W34) ->  | AB32: =IF('BİLGİ GİRİŞİ'!T34="","",'BİLGİ GİRİŞİ'!T34) -> 
A33: =IF('BİLGİ GİRİŞİ'!D35="","",'BİLGİ GİRİŞİ'!D35) ->  | B33: =IF('BİLGİ GİRİŞİ'!E35="","",'BİLGİ GİRİŞİ'!E35) ->  | X33: =IF('BİLGİ GİRİŞİ'!W35="","",'BİLGİ GİRİŞİ'!W35) ->  | AB33: =IF('BİLGİ GİRİŞİ'!T35="","",'BİLGİ GİRİŞİ'!T35) -> 
A34: =IF('BİLGİ GİRİŞİ'!D36="","",'BİLGİ GİRİŞİ'!D36) ->  | B34: =IF('BİLGİ GİRİŞİ'!E36="","",'BİLGİ GİRİŞİ'!E36) ->  | X34: =IF('BİLGİ GİRİŞİ'!W36="","",'BİLGİ GİRİŞİ'!W36) ->  | AB34: =IF('BİLGİ GİRİŞİ'!T36="","",'BİLGİ GİRİŞİ'!T36) -> 
A35: =IF('BİLGİ GİRİŞİ'!D37="","",'BİLGİ GİRİŞİ'!D37) ->  | B35: =IF('BİLGİ GİRİŞİ'!E37="","",'BİLGİ GİRİŞİ'!E37) ->  | X35: =IF('BİLGİ GİRİŞİ'!W37="","",'BİLGİ GİRİŞİ'!W37) ->  | AB35: =IF('BİLGİ GİRİŞİ'!T37="","",'BİLGİ GİRİŞİ'!T37) -> 
A36: =IF('BİLGİ GİRİŞİ'!D38="","",'BİLGİ GİRİŞİ'!D38) ->  | B36: =IF('BİLGİ GİRİŞİ'!E38="","",'BİLGİ GİRİŞİ'!E38) ->  | X36: =IF('BİLGİ GİRİŞİ'!W38="","",'BİLGİ GİRİŞİ'!W38) ->  | AB36: =IF('BİLGİ GİRİŞİ'!T38="","",'BİLGİ GİRİŞİ'!T38) -> 
A37: =IF('BİLGİ GİRİŞİ'!D39="","",'BİLGİ GİRİŞİ'!D39) ->  | B37: =IF('BİLGİ GİRİŞİ'!E39="","",'BİLGİ GİRİŞİ'!E39) ->  | X37: =IF('BİLGİ GİRİŞİ'!W39="","",'BİLGİ GİRİŞİ'!W39) ->  | AB37: =IF('BİLGİ GİRİŞİ'!T39="","",'BİLGİ GİRİŞİ'!T39) -> 
A38: =IF('BİLGİ GİRİŞİ'!D40="","",'BİLGİ GİRİŞİ'!D40) ->  | B38: =IF('BİLGİ GİRİŞİ'!E40="","",'BİLGİ GİRİŞİ'!E40) ->  | X38: =IF('BİLGİ GİRİŞİ'!W40="","",'BİLGİ GİRİŞİ'!W40) ->  | AB38: =IF('BİLGİ GİRİŞİ'!T40="","",'BİLGİ GİRİŞİ'!T40) -> 
A39: =IF('BİLGİ GİRİŞİ'!D41="","",'BİLGİ GİRİŞİ'!D41) ->  | B39: =IF('BİLGİ GİRİŞİ'!E41="","",'BİLGİ GİRİŞİ'!E41) ->  | X39: =IF('BİLGİ GİRİŞİ'!W41="","",'BİLGİ GİRİŞİ'!W41) ->  | AB39: =IF('BİLGİ GİRİŞİ'!T41="","",'BİLGİ GİRİŞİ'!T41) -> 
A40: =IF('BİLGİ GİRİŞİ'!D42="","",'BİLGİ GİRİŞİ'!D42) ->  | B40: =IF('BİLGİ GİRİŞİ'!E42="","",'BİLGİ GİRİŞİ'!E42) ->  | X40: =IF('BİLGİ GİRİŞİ'!W42="","",'BİLGİ GİRİŞİ'!W42) ->  | AB40: =IF('BİLGİ GİRİŞİ'!T42="","",'BİLGİ GİRİŞİ'!T42) -> 
A41: =IF('BİLGİ GİRİŞİ'!D43="","",'BİLGİ GİRİŞİ'!D43) ->  | B41: =IF('BİLGİ GİRİŞİ'!E43="","",'BİLGİ GİRİŞİ'!E43) ->  | X41: =IF('BİLGİ GİRİŞİ'!W43="","",'BİLGİ GİRİŞİ'!W43) ->  | AB41: =IF('BİLGİ GİRİŞİ'!T43="","",'BİLGİ GİRİŞİ'!T43) -> 
A42: =IF('BİLGİ GİRİŞİ'!D44="","",'BİLGİ GİRİŞİ'!D44) ->  | B42: =IF('BİLGİ GİRİŞİ'!E44="","",'BİLGİ GİRİŞİ'!E44) ->  | X42: =IF('BİLGİ GİRİŞİ'!W44="","",'BİLGİ GİRİŞİ'!W44) ->  | AB42: =IF('BİLGİ GİRİŞİ'!T44="","",'BİLGİ GİRİŞİ'!T44) -> 
A43: =IF('BİLGİ GİRİŞİ'!D45="","",'BİLGİ GİRİŞİ'!D45) ->  | B43: =IF('BİLGİ GİRİŞİ'!E45="","",'BİLGİ GİRİŞİ'!E45) ->  | X43: =IF('BİLGİ GİRİŞİ'!W45="","",'BİLGİ GİRİŞİ'!W45) ->  | AB43: =IF('BİLGİ GİRİŞİ'!T45="","",'BİLGİ GİRİŞİ'!T45) -> 
A44: =IF('BİLGİ GİRİŞİ'!D46="","",'BİLGİ GİRİŞİ'!D46) ->  | B44: =IF('BİLGİ GİRİŞİ'!E46="","",'BİLGİ GİRİŞİ'!E46) ->  | X44: =IF('BİLGİ GİRİŞİ'!W46="","",'BİLGİ GİRİŞİ'!W46) ->  | AB44: =IF('BİLGİ GİRİŞİ'!T46="","",'BİLGİ GİRİŞİ'!T46) -> 
A45: =IF('BİLGİ GİRİŞİ'!D47="","",'BİLGİ GİRİŞİ'!D47) ->  | B45: =IF('BİLGİ GİRİŞİ'!E47="","",'BİLGİ GİRİŞİ'!E47) ->  | X45: =IF('BİLGİ GİRİŞİ'!W47="","",'BİLGİ GİRİŞİ'!W47) ->  | AB45: =IF('BİLGİ GİRİŞİ'!T47="","",'BİLGİ GİRİŞİ'!T47) -> 
A46: =IF('BİLGİ GİRİŞİ'!D48="","",'BİLGİ GİRİŞİ'!D48) ->  | B46: =IF('BİLGİ GİRİŞİ'!E48="","",'BİLGİ GİRİŞİ'!E48) ->  | X46: =IF('BİLGİ GİRİŞİ'!W48="","",'BİLGİ GİRİŞİ'!W48) ->  | AB46: =IF('BİLGİ GİRİŞİ'!T48="","",'BİLGİ GİRİŞİ'!T48) -> 
A47: =IF('BİLGİ GİRİŞİ'!D49="","",'BİLGİ GİRİŞİ'!D49) ->  | B47: =IF('BİLGİ GİRİŞİ'!E49="","",'BİLGİ GİRİŞİ'!E49) ->  | X47: =IF('BİLGİ GİRİŞİ'!W49="","",'BİLGİ GİRİŞİ'!W49) ->  | AB47: =IF('BİLGİ GİRİŞİ'!T49="","",'BİLGİ GİRİŞİ'!T49) -> 
A49: PİYASA ARAŞTIRMA GÖREVLİLERİ
A50: =IF('BİLGİ GİRİŞİ'!AB17="","",'BİLGİ GİRİŞİ'!AB17) -> Ahmet DEMİR | K50: =IF('BİLGİ GİRİŞİ'!AH17="","",'BİLGİ GİRİŞİ'!AH17) -> Ayşe YILDIZ | V50: =IF('BİLGİ GİRİŞİ'!AN17="","",'BİLGİ GİRİŞİ'!AN17) -> 
A51: =IF(A50="","",'BİLGİ GİRİŞİ'!AB18) -> Müdür Yardımcısı 1 | K51: =IF(K50="","",'BİLGİ GİRİŞİ'!AH18) -> Öğretmen 1 | V51: =IF(V50="","",'BİLGİ GİRİŞİ'!AN18) -> 
A53: MUAYENE VE KABUL GÖREVLİLERİ
A54: =IF('BİLGİ GİRİŞİ'!AB22="","",'BİLGİ GİRİŞİ'!AB22) -> Mehmet ÇELİK | K54: =IF('BİLGİ GİRİŞİ'!AH22="","",'BİLGİ GİRİŞİ'!AH22) -> Fatma GÜNEŞ | V54: =IF('BİLGİ GİRİŞİ'!AN22="","",'BİLGİ GİRİŞİ'!AN22) -> 
A55: =IF(A54="","",'BİLGİ GİRİŞİ'!AB23) -> Müdür Yardımcısı 2 | K55: =IF(K54="","",'BİLGİ GİRİŞİ'!AH23) -> Öğretmen 2 | V55: =IF(V54="","",'BİLGİ GİRİŞİ'!AN23) -> 

Sheet 2
A2: T.C.
A3: =IF('BİLGİ GİRİŞİ'!O7="","",'BİLGİ GİRİŞİ'!O7) -> BULANIK KAYMAKAMLIĞI
A4: =IF('BİLGİ GİRİŞİ'!O8="","",'BİLGİ GİRİŞİ'!O8) -> Atatürk İlkokulu Müdürlüğü
A6: Sayı | D6: : | E6: =IF('BİLGİ GİRİŞİ'!S15="","",'BİLGİ GİRİŞİ'!S15) -> 456789123 | Z6: =IF('BİLGİ GİRİŞİ'!O16="","…../…../……..",'BİLGİ GİRİŞİ'!O16) -> 2023-03-06
A7: Konu | D7: : | E7: Yaklaşık Maliyet Araştırması
A9: İLGİLİ GERÇEK/TÜZEL KİŞİLERE
A11: =CONCATENATE(" ","Kurumumuz ihtiyaçlarında kullanılmak üzere aşağıda bilgileri verilen Mal/Hizmet/Yapım İşi, Kamu İhale Kanunu'nun ",IF('BİLGİ GİRİŞİ'!O10="",".............................................................................",'BİLGİ GİRİŞİ'!O10)," maddesine göre Doğrudan Temin yoluyla satın alınacaktır.") -> Kurumumuz ihtiyaçlarında kullanılmak üzere aşağıda bilgileri verilen Mal/Hizmet/Yapım İşi, Kamu İhale Kanunu'nun 22/d maddesine göre Doğrudan Temin yoluyla satın alınacaktır.
A13: Yaklaşık maliyetin tespitinde değerlendirilmek üzere aşağıda bilgileri verilen Mal'ın/Hizmet'in/Yapım İşi'nin KDV hariç piyasa fiyatlarının karşılarına yazılması ve Kurumumuza gönderilmesi hususunda; Gereğini rica ederim/ederiz
A18: =IF(A19="","",IF('BİLGİ GİRİŞİ'!AH16="","",'BİLGİ GİRİŞİ'!AH16)) -> Piyasa Araştırma Görevlisi | K18: =IF(K19="","",IF('BİLGİ GİRİŞİ'!AN16="","",'BİLGİ GİRİŞİ'!AN16)) ->  | U18: =IF(U19="","",IF('BİLGİ GİRİŞİ'!AB16="","",'BİLGİ GİRİŞİ'!AB16)) -> Piyasa Araştırma Görevlisi
A19: =IF('BİLGİ GİRİŞİ'!AH17="","",'BİLGİ GİRİŞİ'!AH17) -> Ayşe YILDIZ | K19: =IF('BİLGİ GİRİŞİ'!AN17="","",'BİLGİ GİRİŞİ'!AN17) ->  | U19: =IF('BİLGİ GİRİŞİ'!AB17="","",'BİLGİ GİRİŞİ'!AB17) -> Ahmet DEMİR
A20: =IF(A19="","",IF('BİLGİ GİRİŞİ'!AH18="","",'BİLGİ GİRİŞİ'!AH18)) -> Öğretmen 1 | K20: =IF(K19="","",IF('BİLGİ GİRİŞİ'!AN18="","",'BİLGİ GİRİŞİ'!AN18)) ->  | U20: =IF(U19="","",IF('BİLGİ GİRİŞİ'!AB18="","",'BİLGİ GİRİŞİ'!AB18)) -> Müdür Yardımcısı 1
A23: =IF('BİLGİ GİRİŞİ'!O8="","",CONCATENATE(UPPER('BİLGİ GİRİŞİ'!O8),"",UPPER(IF('BİLGİ GİRİŞİ'!O8="","",'BİLGİ GİRİŞİ'!AN8)))) -> ATATÜRK İLKOKULU MÜDÜRLÜĞÜNE
A25: Kurumunuzca satın alınacak Mal'ın/Hizmet'in/Yapım İşi'nin piyasa fiyatları aşağıya çıkarılmıştır. Gereğini bilgilerinize arz ederim/ederiz.
A29: MAL'IN/HİZMET'İN/YAPIM İŞİ'NİN
A30: S | B30: Kalem/KısımBilgileri | P30: Birimi | T30: Miktarı | X30: Birim Fiyatı | AB30: Toplam Fiyatı
A31: =IF('BİLGİ GİRİŞİ'!D30="","",'BİLGİ GİRİŞİ'!D30) -> 1 | B31: =IF('BİLGİ GİRİŞİ'!E30="","",'BİLGİ GİRİŞİ'!E30) -> AIO (All In One) Masaüstü Bilgisayar | P31: =IF('BİLGİ GİRİŞİ'!W30="","",'BİLGİ GİRİŞİ'!W30) -> Adet | T31: =IF('BİLGİ GİRİŞİ'!T30="","",IF('BİLGİ GİRİŞİ'!$BN$28=1,"1",'BİLGİ GİRİŞİ'!T30)) -> 1
A32: =IF('BİLGİ GİRİŞİ'!D31="","",'BİLGİ GİRİŞİ'!D31) -> 2 | B32: =IF('BİLGİ GİRİŞİ'!E31="","",'BİLGİ GİRİŞİ'!E31) -> Fotokopi Makinesi | P32: =IF('BİLGİ GİRİŞİ'!W31="","",'BİLGİ GİRİŞİ'!W31) -> Adet | T32: =IF('BİLGİ GİRİŞİ'!T31="","",IF('BİLGİ GİRİŞİ'!$BN$28=1,"1",'BİLGİ GİRİŞİ'!T31)) -> 1
A33: =IF('BİLGİ GİRİŞİ'!D32="","",'BİLGİ GİRİŞİ'!D32) -> 3 | B33: =IF('BİLGİ GİRİŞİ'!E32="","",'BİLGİ GİRİŞİ'!E32) -> Projektör | P33: =IF('BİLGİ GİRİŞİ'!W32="","",'BİLGİ GİRİŞİ'!W32) -> Adet | T33: =IF('BİLGİ GİRİŞİ'!T32="","",IF('BİLGİ GİRİŞİ'!$BN$28=1,"1",'BİLGİ GİRİŞİ'!T32)) -> 1
A34: =IF('BİLGİ GİRİŞİ'!D33="","",'BİLGİ GİRİŞİ'!D33) ->  | B34: =IF('BİLGİ GİRİŞİ'!E33="","",'BİLGİ GİRİŞİ'!E33) ->  | P34: =IF('BİLGİ GİRİŞİ'!W33="","",'BİLGİ GİRİŞİ'!W33) ->  | T34: =IF('BİLGİ GİRİŞİ'!T33="","",IF('BİLGİ GİRİŞİ'!$BN$28=1,"1",'BİLGİ GİRİŞİ'!T33)) -> 
A35: =IF('BİLGİ GİRİŞİ'!D34="","",'BİLGİ GİRİŞİ'!D34) ->  | B35: =IF('BİLGİ GİRİŞİ'!E34="","",'BİLGİ GİRİŞİ'!E34) ->  | P35: =IF('BİLGİ GİRİŞİ'!W34="","",'BİLGİ GİRİŞİ'!W34) ->  | T35: =IF('BİLGİ GİRİŞİ'!T34="","",IF('BİLGİ GİRİŞİ'!$BN$28=1,"1",'BİLGİ GİRİŞİ'!T34)) -> 
A36: =IF('BİLGİ GİRİŞİ'!D35="","",'BİLGİ GİRİŞİ'!D35) ->  | B36: =IF('BİLGİ GİRİŞİ'!E35="","",'BİLGİ GİRİŞİ'!E35) ->  | P36: =IF('BİLGİ GİRİŞİ'!W35="","",'BİLGİ GİRİŞİ'!W35) ->  | T36: =IF('BİLGİ GİRİŞİ'!T35="","",IF('BİLGİ GİRİŞİ'!$BN$28=1,"1",'BİLGİ GİRİŞİ'!T35)) -> 
A37: =IF('BİLGİ GİRİŞİ'!D36="","",'BİLGİ GİRİŞİ'!D36) ->  | B37: =IF('BİLGİ GİRİŞİ'!E36="","",'BİLGİ GİRİŞİ'!E36) ->  | P37: =IF('BİLGİ GİRİŞİ'!W36="","",'BİLGİ GİRİŞİ'!W36) ->  | T37: =IF('BİLGİ GİRİŞİ'!T36="","",IF('BİLGİ GİRİŞİ'!$BN$28=1,"1",'BİLGİ GİRİŞİ'!T36)) -> 
A38: =IF('BİLGİ GİRİŞİ'!D37="","",'BİLGİ GİRİŞİ'!D37) ->  | B38: =IF('BİLGİ GİRİŞİ'!E37="","",'BİLGİ GİRİŞİ'!E37) ->  | P38: =IF('BİLGİ GİRİŞİ'!W37="","",'BİLGİ GİRİŞİ'!W37) ->  | T38: =IF('BİLGİ GİRİŞİ'!T37="","",IF('BİLGİ GİRİŞİ'!$BN$28=1,"1",'BİLGİ GİRİŞİ'!T37)) -> 
A39: =IF('BİLGİ GİRİŞİ'!D38="","",'BİLGİ GİRİŞİ'!D38) ->  | B39: =IF('BİLGİ GİRİŞİ'!E38="","",'BİLGİ GİRİŞİ'!E38) ->  | P39: =IF('BİLGİ GİRİŞİ'!W38="","",'BİLGİ GİRİŞİ'!W38) ->  | T39: =IF('BİLGİ GİRİŞİ'!T38="","",IF('BİLGİ GİRİŞİ'!$BN$28=1,"1",'BİLGİ GİRİŞİ'!T38)) -> 
A40: =IF('BİLGİ GİRİŞİ'!D39="","",'BİLGİ GİRİŞİ'!D39) ->  | B40: =IF('BİLGİ GİRİŞİ'!E39="","",'BİLGİ GİRİŞİ'!E39) ->  | P40: =IF('BİLGİ GİRİŞİ'!W39="","",'BİLGİ GİRİŞİ'!W39) ->  | T40: =IF('BİLGİ GİRİŞİ'!T39="","",IF('BİLGİ GİRİŞİ'!$BN$28=1,"1",'BİLGİ GİRİŞİ'!T39)) -> 
A41: =IF('BİLGİ GİRİŞİ'!D40="","",'BİLGİ GİRİŞİ'!D40) ->  | B41: =IF('BİLGİ GİRİŞİ'!E40="","",'BİLGİ GİRİŞİ'!E40) ->  | P41: =IF('BİLGİ GİRİŞİ'!W40="","",'BİLGİ GİRİŞİ'!W40) ->  | T41: =IF('BİLGİ GİRİŞİ'!T40="","",IF('BİLGİ GİRİŞİ'!$BN$28=1,"1",'BİLGİ GİRİŞİ'!T40)) -> 
A42: =IF('BİLGİ GİRİŞİ'!D41="","",'BİLGİ GİRİŞİ'!D41) ->  | B42: =IF('BİLGİ GİRİŞİ'!E41="","",'BİLGİ GİRİŞİ'!E41) ->  | P42: =IF('BİLGİ GİRİŞİ'!W41="","",'BİLGİ GİRİŞİ'!W41) ->  | T42: =IF('BİLGİ GİRİŞİ'!T41="","",IF('BİLGİ GİRİŞİ'!$BN$28=1,"1",'BİLGİ GİRİŞİ'!T41)) -> 
A43: =IF('BİLGİ GİRİŞİ'!D42="","",'BİLGİ GİRİŞİ'!D42) ->  | B43: =IF('BİLGİ GİRİŞİ'!E42="","",'BİLGİ GİRİŞİ'!E42) ->  | P43: =IF('BİLGİ GİRİŞİ'!W42="","",'BİLGİ GİRİŞİ'!W42) ->  | T43: =IF('BİLGİ GİRİŞİ'!T42="","",IF('BİLGİ GİRİŞİ'!$BN$28=1,"1",'BİLGİ GİRİŞİ'!T42)) -> 
A44: =IF('BİLGİ GİRİŞİ'!D43="","",'BİLGİ GİRİŞİ'!D43) ->  | B44: =IF('BİLGİ GİRİŞİ'!E43="","",'BİLGİ GİRİŞİ'!E43) ->  | P44: =IF('BİLGİ GİRİŞİ'!W43="","",'BİLGİ GİRİŞİ'!W43) ->  | T44: =IF('BİLGİ GİRİŞİ'!T43="","",IF('BİLGİ GİRİŞİ'!$BN$28=1,"1",'BİLGİ GİRİŞİ'!T43)) -> 
A45: =IF('BİLGİ GİRİŞİ'!D44="","",'BİLGİ GİRİŞİ'!D44) ->  | B45: =IF('BİLGİ GİRİŞİ'!E44="","",'BİLGİ GİRİŞİ'!E44) ->  | P45: =IF('BİLGİ GİRİŞİ'!W44="","",'BİLGİ GİRİŞİ'!W44) ->  | T45: =IF('BİLGİ GİRİŞİ'!T44="","",IF('BİLGİ GİRİŞİ'!$BN$28=1,"1",'BİLGİ GİRİŞİ'!T44)) -> 
A46: =IF('BİLGİ GİRİŞİ'!D45="","",'BİLGİ GİRİŞİ'!D45) ->  | B46: =IF('BİLGİ GİRİŞİ'!E45="","",'BİLGİ GİRİŞİ'!E45) ->  | P46: =IF('BİLGİ GİRİŞİ'!W45="","",'BİLGİ GİRİŞİ'!W45) ->  | T46: =IF('BİLGİ GİRİŞİ'!T45="","",IF('BİLGİ GİRİŞİ'!$BN$28=1,"1",'BİLGİ GİRİŞİ'!T45)) -> 
A47: =IF('BİLGİ GİRİŞİ'!D46="","",'BİLGİ GİRİŞİ'!D46) ->  | B47: =IF('BİLGİ GİRİŞİ'!E46="","",'BİLGİ GİRİŞİ'!E46) ->  | P47: =IF('BİLGİ GİRİŞİ'!W46="","",'BİLGİ GİRİŞİ'!W46) ->  | T47: =IF('BİLGİ GİRİŞİ'!T46="","",IF('BİLGİ GİRİŞİ'!$BN$28=1,"1",'BİLGİ GİRİŞİ'!T46)) -> 
A48: =IF('BİLGİ GİRİŞİ'!D47="","",'BİLGİ GİRİŞİ'!D47) ->  | B48: =IF('BİLGİ GİRİŞİ'!E47="","",'BİLGİ GİRİŞİ'!E47) ->  | P48: =IF('BİLGİ GİRİŞİ'!W47="","",'BİLGİ GİRİŞİ'!W47) ->  | T48: =IF('BİLGİ GİRİŞİ'!T47="","",IF('BİLGİ GİRİŞİ'!$BN$28=1,"1",'BİLGİ GİRİŞİ'!T47)) -> 
A49: =IF('BİLGİ GİRİŞİ'!D48="","",'BİLGİ GİRİŞİ'!D48) ->  | B49: =IF('BİLGİ GİRİŞİ'!E48="","",'BİLGİ GİRİŞİ'!E48) ->  | P49: =IF('BİLGİ GİRİŞİ'!W48="","",'BİLGİ GİRİŞİ'!W48) ->  | T49: =IF('BİLGİ GİRİŞİ'!T48="","",IF('BİLGİ GİRİŞİ'!$BN$28=1,"1",'BİLGİ GİRİŞİ'!T48)) -> 
A50: =IF('BİLGİ GİRİŞİ'!D49="","",'BİLGİ GİRİŞİ'!D49) ->  | B50: =IF('BİLGİ GİRİŞİ'!E49="","",'BİLGİ GİRİŞİ'!E49) ->  | P50: =IF('BİLGİ GİRİŞİ'!W49="","",'BİLGİ GİRİŞİ'!W49) ->  | T50: =IF('BİLGİ GİRİŞİ'!T49="","",IF('BİLGİ GİRİŞİ'!$BN$28=1,"1",'BİLGİ GİRİŞİ'!T49)) -> 
A51: TOPLAM (KDV Hariç)
U53: KİŞİ/FİRMA KAŞE/İMZA

Sheet 3
A2: YAKLAŞIK MALİYET HESAP CETVELİ
A4: İdarenin Adı | K4: : | L4: =IF('BİLGİ GİRİŞİ'!O8="","",'BİLGİ GİRİŞİ'!O8) -> Atatürk İlkokulu Müdürlüğü | AQ4: =IF('BİLGİ GİRİŞİ'!O17="","….../….../….…..",'BİLGİ GİRİŞİ'!O17) -> 2023-03-07
A5: Doğrudan Temin Numarası | K5: : | L5: =IF('BİLGİ GİRİŞİ'!O11="","",'BİLGİ GİRİŞİ'!O11) -> 22DT1211930
A6: Mal/Hizmet/Yapım Adı, Niteliği | K6: : | L6: =IF('BİLGİ GİRİŞİ'!O9="","",'BİLGİ GİRİŞİ'!O9) -> Bilişim Malzemeleri Alımı
A7: Alım/Görevlendirme Onay Tarihi/sayısı | K7: : | L7: =IF('BİLGİ GİRİŞİ'!O15="","",'BİLGİ GİRİŞİ'!O15) -> 2023-03-06 | P7: / | Q7: =IF('BİLGİ GİRİŞİ'!S15="","",'BİLGİ GİRİŞİ'!S15) -> 456789123
A9: =CONCATENATE(" ","Kurumumuz ihtiyaçlarında kullanılmak üzere aşağıda bilgileri verilen Mal/Hizmet/Yapım İşi, Kamu İhale Kanunu'nun ",IF('BİLGİ GİRİŞİ'!O10="",".............................................................................",'BİLGİ GİRİŞİ'!O10)," maddesine göre Doğrudan Temin yoluyla satın alınmak üzere piyasa fiyat araştırması yapılmış olup verilen fiyatlar ve yaklaşık maliyet aşağıya çıkarılmıştır.") -> Kurumumuz ihtiyaçlarında kullanılmak üzere aşağıda bilgileri verilen Mal/Hizmet/Yapım İşi, Kamu İhale Kanunu'nun 22/d maddesine göre Doğrudan Temin yoluyla satın alınmak üzere piyasa fiyat araştırması yapılmış olup verilen fiyatlar ve yaklaşık maliyet aşağıya çıkarılmıştır.
A13: MAL'IN/HİZMET'İN/YAPIM İŞİ'NİN | X13: TEKLİF VEREN KİŞİLER/FİRMALAR VE TEKLİF FİYATLARI | AP13: YAKLAŞIK MALİYET
A14: S | B14: Kalem/KısımBilgileri | P14: Birimi | T14: Miktarı | X14: =IF('BİLGİ GİRİŞİ'!AB28="","",'BİLGİ GİRİŞİ'!AB28) -> A GERÇEK/TÜZEL KİŞİSİ | AD14: =IF('BİLGİ GİRİŞİ'!AJ28="","",'BİLGİ GİRİŞİ'!AJ28) -> B GERÇEK/TÜZEL KİŞİSİ | AJ14: =IF('BİLGİ GİRİŞİ'!AR28="","",'BİLGİ GİRİŞİ'!AR28) -> C GERÇEK/TÜZEL KİŞİSİ
X15: Birim Fiyat | AA15: Toplam Fiyat | AD15: Birim Fiyat | AG15: Toplam Fiyat | AJ15: Birim Fiyat | AM15: Toplam Fiyat | AP15: Birim Fiyat | AS15: Toplam Fiyat
A16: =IF('BİLGİ GİRİŞİ'!D30="","",'BİLGİ GİRİŞİ'!D30) -> 1 | B16: =IF('BİLGİ GİRİŞİ'!E30="","",'BİLGİ GİRİŞİ'!E30) -> AIO (All In One) Masaüstü Bilgisayar | P16: =IF('BİLGİ GİRİŞİ'!W30="","",'BİLGİ GİRİŞİ'!W30) -> Adet | T16: =IF('BİLGİ GİRİŞİ'!T30="","",'BİLGİ GİRİŞİ'!T30) -> 20 | X16: =IF('BİLGİ GİRİŞİ'!AB30="","",'BİLGİ GİRİŞİ'!AB30) -> 14000 | AA16: =IF('BİLGİ GİRİŞİ'!AF30="","",'BİLGİ GİRİŞİ'!AF30) -> 280000 | AD16: =IF('BİLGİ GİRİŞİ'!AJ30="","",'BİLGİ GİRİŞİ'!AJ30) -> 12000 | AG16: =IF('BİLGİ GİRİŞİ'!AN30="","",'BİLGİ GİRİŞİ'!AN30) -> 240000 | AJ16: =IF('BİLGİ GİRİŞİ'!AR30="","",'BİLGİ GİRİŞİ'!AR30) -> 13000 | AM16: =IF('BİLGİ GİRİŞİ'!AV30="","",'BİLGİ GİRİŞİ'!AV30) -> 260000 | AP16: =IF(P16="","",(X16+AD16+AJ16)/3) -> 13000 | AS16: =IF(P16="","",(AA16+AG16+AM16)/3) -> 260000
A17: =IF('BİLGİ GİRİŞİ'!D31="","",'BİLGİ GİRİŞİ'!D31) -> 2 | B17: =IF('BİLGİ GİRİŞİ'!E31="","",'BİLGİ GİRİŞİ'!E31) -> Fotokopi Makinesi | P17: =IF('BİLGİ GİRİŞİ'!W31="","",'BİLGİ GİRİŞİ'!W31) -> Adet | T17: =IF('BİLGİ GİRİŞİ'!T31="","",'BİLGİ GİRİŞİ'!T31) -> 10 | X17: =IF('BİLGİ GİRİŞİ'!AB31="","",'BİLGİ GİRİŞİ'!AB31) -> 11000 | AA17: =IF('BİLGİ GİRİŞİ'!AF31="","",'BİLGİ GİRİŞİ'!AF31) -> 110000 | AD17: =IF('BİLGİ GİRİŞİ'!AJ31="","",'BİLGİ GİRİŞİ'!AJ31) -> 9000 | AG17: =IF('BİLGİ GİRİŞİ'!AN31="","",'BİLGİ GİRİŞİ'!AN31) -> 90000 | AJ17: =IF('BİLGİ GİRİŞİ'!AR31="","",'BİLGİ GİRİŞİ'!AR31) -> 10000 | AM17: =IF('BİLGİ GİRİŞİ'!AV31="","",'BİLGİ GİRİŞİ'!AV31) -> 100000 | AP17: =IF(P17="","",(X17+AD17+AJ17)/3) -> 10000 | AS17: =IF(P17="","",(AA17+AG17+AM17)/3) -> 100000
A18: =IF('BİLGİ GİRİŞİ'!D32="","",'BİLGİ GİRİŞİ'!D32) -> 3 | B18: =IF('BİLGİ GİRİŞİ'!E32="","",'BİLGİ GİRİŞİ'!E32) -> Projektör | P18: =IF('BİLGİ GİRİŞİ'!W32="","",'BİLGİ GİRİŞİ'!W32) -> Adet | T18: =IF('BİLGİ GİRİŞİ'!T32="","",'BİLGİ GİRİŞİ'!T32) -> 4 | X18: =IF('BİLGİ GİRİŞİ'!AB32="","",'BİLGİ GİRİŞİ'!AB32) -> 8000 | AA18: =IF('BİLGİ GİRİŞİ'!AF32="","",'BİLGİ GİRİŞİ'!AF32) -> 32000 | AD18: =IF('BİLGİ GİRİŞİ'!AJ32="","",'BİLGİ GİRİŞİ'!AJ32) -> 6000 | AG18: =IF('BİLGİ GİRİŞİ'!AN32="","",'BİLGİ GİRİŞİ'!AN32) -> 24000 | AJ18: =IF('BİLGİ GİRİŞİ'!AR32="","",'BİLGİ GİRİŞİ'!AR32) -> 7000 | AM18: =IF('BİLGİ GİRİŞİ'!AV32="","",'BİLGİ GİRİŞİ'!AV32) -> 28000 | AP18: =IF(P18="","",(X18+AD18+AJ18)/3) -> 7000 | AS18: 28000
A19: =IF('BİLGİ GİRİŞİ'!D33="","",'BİLGİ GİRİŞİ'!D33) ->  | B19: =IF('BİLGİ GİRİŞİ'!E33="","",'BİLGİ GİRİŞİ'!E33) ->  | P19: =IF('BİLGİ GİRİŞİ'!W33="","",'BİLGİ GİRİŞİ'!W33) ->  | T19: =IF('BİLGİ GİRİŞİ'!T33="","",'BİLGİ GİRİŞİ'!T33) ->  | X19: =IF('BİLGİ GİRİŞİ'!AB33="","",'BİLGİ GİRİŞİ'!AB33) ->  | AA19: =IF('BİLGİ GİRİŞİ'!AF33="","",'BİLGİ GİRİŞİ'!AF33) ->  | AD19: =IF('BİLGİ GİRİŞİ'!AJ33="","",'BİLGİ GİRİŞİ'!AJ33) ->  | AG19: =IF('BİLGİ GİRİŞİ'!AN33="","",'BİLGİ GİRİŞİ'!AN33) ->  | AJ19: =IF('BİLGİ GİRİŞİ'!AR33="","",'BİLGİ GİRİŞİ'!AR33) ->  | AM19: =IF('BİLGİ GİRİŞİ'!AV33="","",'BİLGİ GİRİŞİ'!AV33) -> 
A20: =IF('BİLGİ GİRİŞİ'!D34="","",'BİLGİ GİRİŞİ'!D34) ->  | B20: =IF('BİLGİ GİRİŞİ'!E34="","",'BİLGİ GİRİŞİ'!E34) ->  | P20: =IF('BİLGİ GİRİŞİ'!W34="","",'BİLGİ GİRİŞİ'!W34) ->  | T20: =IF('BİLGİ GİRİŞİ'!T34="","",'BİLGİ GİRİŞİ'!T34) ->  | X20: =IF('BİLGİ GİRİŞİ'!AB34="","",'BİLGİ GİRİŞİ'!AB34) ->  | AA20: =IF('BİLGİ GİRİŞİ'!AF34="","",'BİLGİ GİRİŞİ'!AF34) ->  | AD20: =IF('BİLGİ GİRİŞİ'!AJ34="","",'BİLGİ GİRİŞİ'!AJ34) ->  | AG20: =IF('BİLGİ GİRİŞİ'!AN34="","",'BİLGİ GİRİŞİ'!AN34) ->  | AJ20: =IF('BİLGİ GİRİŞİ'!AR34="","",'BİLGİ GİRİŞİ'!AR34) ->  | AM20: =IF('BİLGİ GİRİŞİ'!AV34="","",'BİLGİ GİRİŞİ'!AV34) -> 
A21: =IF('BİLGİ GİRİŞİ'!D35="","",'BİLGİ GİRİŞİ'!D35) ->  | B21: =IF('BİLGİ GİRİŞİ'!E35="","",'BİLGİ GİRİŞİ'!E35) ->  | P21: =IF('BİLGİ GİRİŞİ'!W35="","",'BİLGİ GİRİŞİ'!W35) ->  | T21: =IF('BİLGİ GİRİŞİ'!T35="","",'BİLGİ GİRİŞİ'!T35) ->  | X21: =IF('BİLGİ GİRİŞİ'!AB35="","",'BİLGİ GİRİŞİ'!AB35) ->  | AA21: =IF('BİLGİ GİRİŞİ'!AF35="","",'BİLGİ GİRİŞİ'!AF35) ->  | AD21: =IF('BİLGİ GİRİŞİ'!AJ35="","",'BİLGİ GİRİŞİ'!AJ35) ->  | AG21: =IF('BİLGİ GİRİŞİ'!AN35="","",'BİLGİ GİRİŞİ'!AN35) ->  | AJ21: =IF('BİLGİ GİRİŞİ'!AR35="","",'BİLGİ GİRİŞİ'!AR35) ->  | AM21: =IF('BİLGİ GİRİŞİ'!AV35="","",'BİLGİ GİRİŞİ'!AV35) -> 
A22: =IF('BİLGİ GİRİŞİ'!D36="","",'BİLGİ GİRİŞİ'!D36) ->  | B22: =IF('BİLGİ GİRİŞİ'!E36="","",'BİLGİ GİRİŞİ'!E36) ->  | P22: =IF('BİLGİ GİRİŞİ'!W36="","",'BİLGİ GİRİŞİ'!W36) ->  | T22: =IF('BİLGİ GİRİŞİ'!T36="","",'BİLGİ GİRİŞİ'!T36) ->  | X22: =IF('BİLGİ GİRİŞİ'!AB36="","",'BİLGİ GİRİŞİ'!AB36) ->  | AA22: =IF('BİLGİ GİRİŞİ'!AF36="","",'BİLGİ GİRİŞİ'!AF36) ->  | AD22: =IF('BİLGİ GİRİŞİ'!AJ36="","",'BİLGİ GİRİŞİ'!AJ36) ->  | AG22: =IF('BİLGİ GİRİŞİ'!AN36="","",'BİLGİ GİRİŞİ'!AN36) ->  | AJ22: =IF('BİLGİ GİRİŞİ'!AR36="","",'BİLGİ GİRİŞİ'!AR36) ->  | AM22: =IF('BİLGİ GİRİŞİ'!AV36="","",'BİLGİ GİRİŞİ'!AV36) -> 
A23: =IF('BİLGİ GİRİŞİ'!D37="","",'BİLGİ GİRİŞİ'!D37) ->  | B23: =IF('BİLGİ GİRİŞİ'!E37="","",'BİLGİ GİRİŞİ'!E37) ->  | P23: =IF('BİLGİ GİRİŞİ'!W37="","",'BİLGİ GİRİŞİ'!W37) ->  | T23: =IF('BİLGİ GİRİŞİ'!T37="","",'BİLGİ GİRİŞİ'!T37) ->  | X23: =IF('BİLGİ GİRİŞİ'!AB37="","",'BİLGİ GİRİŞİ'!AB37) ->  | AA23: =IF('BİLGİ GİRİŞİ'!AF37="","",'BİLGİ GİRİŞİ'!AF37) ->  | AD23: =IF('BİLGİ GİRİŞİ'!AJ37="","",'BİLGİ GİRİŞİ'!AJ37) ->  | AG23: =IF('BİLGİ GİRİŞİ'!AN37="","",'BİLGİ GİRİŞİ'!AN37) ->  | AJ23: =IF('BİLGİ GİRİŞİ'!AR37="","",'BİLGİ GİRİŞİ'!AR37) ->  | AM23: =IF('BİLGİ GİRİŞİ'!AV37="","",'BİLGİ GİRİŞİ'!AV37) -> 
A24: =IF('BİLGİ GİRİŞİ'!D38="","",'BİLGİ GİRİŞİ'!D38) ->  | B24: =IF('BİLGİ GİRİŞİ'!E38="","",'BİLGİ GİRİŞİ'!E38) ->  | P24: =IF('BİLGİ GİRİŞİ'!W38="","",'BİLGİ GİRİŞİ'!W38) ->  | T24: =IF('BİLGİ GİRİŞİ'!T38="","",'BİLGİ GİRİŞİ'!T38) ->  | X24: =IF('BİLGİ GİRİŞİ'!AB38="","",'BİLGİ GİRİŞİ'!AB38) ->  | AA24: =IF('BİLGİ GİRİŞİ'!AF38="","",'BİLGİ GİRİŞİ'!AF38) ->  | AD24: =IF('BİLGİ GİRİŞİ'!AJ38="","",'BİLGİ GİRİŞİ'!AJ38) ->  | AG24: =IF('BİLGİ GİRİŞİ'!AN38="","",'BİLGİ GİRİŞİ'!AN38) ->  | AJ24: =IF('BİLGİ GİRİŞİ'!AR38="","",'BİLGİ GİRİŞİ'!AR38) ->  | AM24: =IF('BİLGİ GİRİŞİ'!AV38="","",'BİLGİ GİRİŞİ'!AV38) -> 
A25: =IF('BİLGİ GİRİŞİ'!D39="","",'BİLGİ GİRİŞİ'!D39) ->  | B25: =IF('BİLGİ GİRİŞİ'!E39="","",'BİLGİ GİRİŞİ'!E39) ->  | P25: =IF('BİLGİ GİRİŞİ'!W39="","",'BİLGİ GİRİŞİ'!W39) ->  | T25: =IF('BİLGİ GİRİŞİ'!T39="","",'BİLGİ GİRİŞİ'!T39) ->  | X25: =IF('BİLGİ GİRİŞİ'!AB39="","",'BİLGİ GİRİŞİ'!AB39) ->  | AA25: =IF('BİLGİ GİRİŞİ'!AF39="","",'BİLGİ GİRİŞİ'!AF39) ->  | AD25: =IF('BİLGİ GİRİŞİ'!AJ39="","",'BİLGİ GİRİŞİ'!AJ39) ->  | AG25: =IF('BİLGİ GİRİŞİ'!AN39="","",'BİLGİ GİRİŞİ'!AN39) ->  | AJ25: =IF('BİLGİ GİRİŞİ'!AR39="","",'BİLGİ GİRİŞİ'!AR39) ->  | AM25: =IF('BİLGİ GİRİŞİ'!AV39="","",'BİLGİ GİRİŞİ'!AV39) -> 
A26: =IF('BİLGİ GİRİŞİ'!D40="","",'BİLGİ GİRİŞİ'!D40) ->  | B26: =IF('BİLGİ GİRİŞİ'!E40="","",'BİLGİ GİRİŞİ'!E40) ->  | P26: =IF('BİLGİ GİRİŞİ'!W40="","",'BİLGİ GİRİŞİ'!W40) ->  | T26: =IF('BİLGİ GİRİŞİ'!T40="","",'BİLGİ GİRİŞİ'!T40) ->  | X26: =IF('BİLGİ GİRİŞİ'!AB40="","",'BİLGİ GİRİŞİ'!AB40) ->  | AA26: =IF('BİLGİ GİRİŞİ'!AF40="","",'BİLGİ GİRİŞİ'!AF40) ->  | AD26: =IF('BİLGİ GİRİŞİ'!AJ40="","",'BİLGİ GİRİŞİ'!AJ40) ->  | AG26: =IF('BİLGİ GİRİŞİ'!AN40="","",'BİLGİ GİRİŞİ'!AN40) ->  | AJ26: =IF('BİLGİ GİRİŞİ'!AR40="","",'BİLGİ GİRİŞİ'!AR40) ->  | AM26: =IF('BİLGİ GİRİŞİ'!AV40="","",'BİLGİ GİRİŞİ'!AV40) -> 
A27: =IF('BİLGİ GİRİŞİ'!D41="","",'BİLGİ GİRİŞİ'!D41) ->  | B27: =IF('BİLGİ GİRİŞİ'!E41="","",'BİLGİ GİRİŞİ'!E41) ->  | P27: =IF('BİLGİ GİRİŞİ'!W41="","",'BİLGİ GİRİŞİ'!W41) ->  | T27: =IF('BİLGİ GİRİŞİ'!T41="","",'BİLGİ GİRİŞİ'!T41) ->  | X27: =IF('BİLGİ GİRİŞİ'!AB41="","",'BİLGİ GİRİŞİ'!AB41) ->  | AA27: =IF('BİLGİ GİRİŞİ'!AF41="","",'BİLGİ GİRİŞİ'!AF41) ->  | AD27: =IF('BİLGİ GİRİŞİ'!AJ41="","",'BİLGİ GİRİŞİ'!AJ41) ->  | AG27: =IF('BİLGİ GİRİŞİ'!AN41="","",'BİLGİ GİRİŞİ'!AN41) ->  | AJ27: =IF('BİLGİ GİRİŞİ'!AR41="","",'BİLGİ GİRİŞİ'!AR41) ->  | AM27: =IF('BİLGİ GİRİŞİ'!AV41="","",'BİLGİ GİRİŞİ'!AV41) -> 
A28: =IF('BİLGİ GİRİŞİ'!D42="","",'BİLGİ GİRİŞİ'!D42) ->  | B28: =IF('BİLGİ GİRİŞİ'!E42="","",'BİLGİ GİRİŞİ'!E42) ->  | P28: =IF('BİLGİ GİRİŞİ'!W42="","",'BİLGİ GİRİŞİ'!W42) ->  | T28: =IF('BİLGİ GİRİŞİ'!T42="","",'BİLGİ GİRİŞİ'!T42) ->  | X28: =IF('BİLGİ GİRİŞİ'!AB42="","",'BİLGİ GİRİŞİ'!AB42) ->  | AA28: =IF('BİLGİ GİRİŞİ'!AF42="","",'BİLGİ GİRİŞİ'!AF42) ->  | AD28: =IF('BİLGİ GİRİŞİ'!AJ42="","",'BİLGİ GİRİŞİ'!AJ42) ->  | AG28: =IF('BİLGİ GİRİŞİ'!AN42="","",'BİLGİ GİRİŞİ'!AN42) ->  | AJ28: =IF('BİLGİ GİRİŞİ'!AR42="","",'BİLGİ GİRİŞİ'!AR42) ->  | AM28: =IF('BİLGİ GİRİŞİ'!AV42="","",'BİLGİ GİRİŞİ'!AV42) -> 
A29: =IF('BİLGİ GİRİŞİ'!D43="","",'BİLGİ GİRİŞİ'!D43) ->  | B29: =IF('BİLGİ GİRİŞİ'!E43="","",'BİLGİ GİRİŞİ'!E43) ->  | P29: =IF('BİLGİ GİRİŞİ'!W43="","",'BİLGİ GİRİŞİ'!W43) ->  | T29: =IF('BİLGİ GİRİŞİ'!T43="","",'BİLGİ GİRİŞİ'!T43) ->  | X29: =IF('BİLGİ GİRİŞİ'!AB43="","",'BİLGİ GİRİŞİ'!AB43) ->  | AA29: =IF('BİLGİ GİRİŞİ'!AF43="","",'BİLGİ GİRİŞİ'!AF43) ->  | AD29: =IF('BİLGİ GİRİŞİ'!AJ43="","",'BİLGİ GİRİŞİ'!AJ43) ->  | AG29: =IF('BİLGİ GİRİŞİ'!AN43="","",'BİLGİ GİRİŞİ'!AN43) ->  | AJ29: =IF('BİLGİ GİRİŞİ'!AR43="","",'BİLGİ GİRİŞİ'!AR43) ->  | AM29: =IF('BİLGİ GİRİŞİ'!AV43="","",'BİLGİ GİRİŞİ'!AV43) -> 
A30: =IF('BİLGİ GİRİŞİ'!D44="","",'BİLGİ GİRİŞİ'!D44) ->  | B30: =IF('BİLGİ GİRİŞİ'!E44="","",'BİLGİ GİRİŞİ'!E44) ->  | P30: =IF('BİLGİ GİRİŞİ'!W44="","",'BİLGİ GİRİŞİ'!W44) ->  | T30: =IF('BİLGİ GİRİŞİ'!T44="","",'BİLGİ GİRİŞİ'!T44) ->  | X30: =IF('BİLGİ GİRİŞİ'!AB44="","",'BİLGİ GİRİŞİ'!AB44) ->  | AA30: =IF('BİLGİ GİRİŞİ'!AF44="","",'BİLGİ GİRİŞİ'!AF44) ->  | AD30: =IF('BİLGİ GİRİŞİ'!AJ44="","",'BİLGİ GİRİŞİ'!AJ44) ->  | AG30: =IF('BİLGİ GİRİŞİ'!AN44="","",'BİLGİ GİRİŞİ'!AN44) ->  | AJ30: =IF('BİLGİ GİRİŞİ'!AR44="","",'BİLGİ GİRİŞİ'!AR44) ->  | AM30: =IF('BİLGİ GİRİŞİ'!AV44="","",'BİLGİ GİRİŞİ'!AV44) -> 
A31: =IF('BİLGİ GİRİŞİ'!D45="","",'BİLGİ GİRİŞİ'!D45) ->  | B31: =IF('BİLGİ GİRİŞİ'!E45="","",'BİLGİ GİRİŞİ'!E45) ->  | P31: =IF('BİLGİ GİRİŞİ'!W45="","",'BİLGİ GİRİŞİ'!W45) ->  | T31: =IF('BİLGİ GİRİŞİ'!T45="","",'BİLGİ GİRİŞİ'!T45) ->  | X31: =IF('BİLGİ GİRİŞİ'!AB45="","",'BİLGİ GİRİŞİ'!AB45) ->  | AA31: =IF('BİLGİ GİRİŞİ'!AF45="","",'BİLGİ GİRİŞİ'!AF45) ->  | AD31: =IF('BİLGİ GİRİŞİ'!AJ45="","",'BİLGİ GİRİŞİ'!AJ45) ->  | AG31: =IF('BİLGİ GİRİŞİ'!AN45="","",'BİLGİ GİRİŞİ'!AN45) ->  | AJ31: =IF('BİLGİ GİRİŞİ'!AR45="","",'BİLGİ GİRİŞİ'!AR45) ->  | AM31: =IF('BİLGİ GİRİŞİ'!AV45="","",'BİLGİ GİRİŞİ'!AV45) -> 
A32: =IF('BİLGİ GİRİŞİ'!D46="","",'BİLGİ GİRİŞİ'!D46) ->  | B32: =IF('BİLGİ GİRİŞİ'!E46="","",'BİLGİ GİRİŞİ'!E46) ->  | P32: =IF('BİLGİ GİRİŞİ'!W46="","",'BİLGİ GİRİŞİ'!W46) ->  | T32: =IF('BİLGİ GİRİŞİ'!T46="","",'BİLGİ GİRİŞİ'!T46) ->  | X32: =IF('BİLGİ GİRİŞİ'!AB46="","",'BİLGİ GİRİŞİ'!AB46) ->  | AA32: =IF('BİLGİ GİRİŞİ'!AF46="","",'BİLGİ GİRİŞİ'!AF46) ->  | AD32: =IF('BİLGİ GİRİŞİ'!AJ46="","",'BİLGİ GİRİŞİ'!AJ46) ->  | AG32: =IF('BİLGİ GİRİŞİ'!AN46="","",'BİLGİ GİRİŞİ'!AN46) ->  | AJ32: =IF('BİLGİ GİRİŞİ'!AR46="","",'BİLGİ GİRİŞİ'!AR46) ->  | AM32: =IF('BİLGİ GİRİŞİ'!AV46="","",'BİLGİ GİRİŞİ'!AV46) -> 
A33: =IF('BİLGİ GİRİŞİ'!D47="","",'BİLGİ GİRİŞİ'!D47) ->  | B33: =IF('BİLGİ GİRİŞİ'!E47="","",'BİLGİ GİRİŞİ'!E47) ->  | P33: =IF('BİLGİ GİRİŞİ'!W47="","",'BİLGİ GİRİŞİ'!W47) ->  | T33: =IF('BİLGİ GİRİŞİ'!T47="","",'BİLGİ GİRİŞİ'!T47) ->  | X33: =IF('BİLGİ GİRİŞİ'!AB47="","",'BİLGİ GİRİŞİ'!AB47) ->  | AA33: =IF('BİLGİ GİRİŞİ'!AF47="","",'BİLGİ GİRİŞİ'!AF47) ->  | AD33: =IF('BİLGİ GİRİŞİ'!AJ47="","",'BİLGİ GİRİŞİ'!AJ47) ->  | AG33: =IF('BİLGİ GİRİŞİ'!AN47="","",'BİLGİ GİRİŞİ'!AN47) ->  | AJ33: =IF('BİLGİ GİRİŞİ'!AR47="","",'BİLGİ GİRİŞİ'!AR47) ->  | AM33: =IF('BİLGİ GİRİŞİ'!AV47="","",'BİLGİ GİRİŞİ'!AV47) -> 
A34: =IF('BİLGİ GİRİŞİ'!D48="","",'BİLGİ GİRİŞİ'!D48) ->  | B34: =IF('BİLGİ GİRİŞİ'!E48="","",'BİLGİ GİRİŞİ'!E48) ->  | P34: =IF('BİLGİ GİRİŞİ'!W48="","",'BİLGİ GİRİŞİ'!W48) ->  | T34: =IF('BİLGİ GİRİŞİ'!T48="","",'BİLGİ GİRİŞİ'!T48) ->  | X34: =IF('BİLGİ GİRİŞİ'!AB48="","",'BİLGİ GİRİŞİ'!AB48) ->  | AA34: =IF('BİLGİ GİRİŞİ'!AF48="","",'BİLGİ GİRİŞİ'!AF48) ->  | AD34: =IF('BİLGİ GİRİŞİ'!AJ48="","",'BİLGİ GİRİŞİ'!AJ48) ->  | AG34: =IF('BİLGİ GİRİŞİ'!AN48="","",'BİLGİ GİRİŞİ'!AN48) ->  | AJ34: =IF('BİLGİ GİRİŞİ'!AR48="","",'BİLGİ GİRİŞİ'!AR48) ->  | AM34: =IF('BİLGİ GİRİŞİ'!AV48="","",'BİLGİ GİRİŞİ'!AV48) -> 
A35: =IF('BİLGİ GİRİŞİ'!D49="","",'BİLGİ GİRİŞİ'!D49) ->  | B35: =IF('BİLGİ GİRİŞİ'!E49="","",'BİLGİ GİRİŞİ'!E49) ->  | P35: =IF('BİLGİ GİRİŞİ'!W49="","",'BİLGİ GİRİŞİ'!W49) ->  | T35: =IF('BİLGİ GİRİŞİ'!T49="","",'BİLGİ GİRİŞİ'!T49) ->  | X35: =IF('BİLGİ GİRİŞİ'!AB49="","",'BİLGİ GİRİŞİ'!AB49) ->  | AA35: =IF('BİLGİ GİRİŞİ'!AF49="","",'BİLGİ GİRİŞİ'!AF49) ->  | AD35: =IF('BİLGİ GİRİŞİ'!AJ49="","",'BİLGİ GİRİŞİ'!AJ49) ->  | AG35: =IF('BİLGİ GİRİŞİ'!AN49="","",'BİLGİ GİRİŞİ'!AN49) ->  | AJ35: =IF('BİLGİ GİRİŞİ'!AR49="","",'BİLGİ GİRİŞİ'!AR49) ->  | AM35: =IF('BİLGİ GİRİŞİ'!AV49="","",'BİLGİ GİRİŞİ'!AV49) -> 
A36: TOPLAM (KDV Hariç) | X36: =SUM(X16:X35) -> 33000 | AA36: =SUM(AA16:AA35) -> 422000 | AD36: =SUM(AD16:AD35) -> 27000 | AG36: =SUM(AG16:AG35) -> 354000 | AJ36: =SUM(AJ16:AJ35) -> 30000 | AM36: =SUM(AM16:AM35) -> 388000 | AP36: =SUM(AP16:AP35) -> 30000 | AS36: =SUM(AS16:AS35) -> 388000
A38: Piyasa araştırması sonucu yaklaşık maliyet, KDV hariç | S38: =IF(AS36="","",AS36) -> 388000 | Y38: Türk Lirası olarak hesaplanmış olup iş bu cetvel tarafımızca imza altına alınmıştır.
B41: =IF(B44="","",IF('BİLGİ GİRİŞİ'!AB16="","",'BİLGİ GİRİŞİ'!AB16)) -> Piyasa Araştırma Görevlisi | M41: =IF(M44="","",IF('BİLGİ GİRİŞİ'!AH16="","",'BİLGİ GİRİŞİ'!AH16)) -> Piyasa Araştırma Görevlisi | X41: =IF(X44="","",IF('BİLGİ GİRİŞİ'!AN16="","",'BİLGİ GİRİŞİ'!AN16)) ->  | AI41: =IF(AI44="","",IF('BİLGİ GİRİŞİ'!AT16="","",'BİLGİ GİRİŞİ'!AT16)) -> OLUR/UYGUNDUR
AI42: =IF(AI44="","",IF('BİLGİ GİRİŞİ'!O17="","….../….../….…..",'BİLGİ GİRİŞİ'!O17)) -> 2023-03-07
B44: =IF('BİLGİ GİRİŞİ'!AB17="","",'BİLGİ GİRİŞİ'!AB17) -> Ahmet DEMİR | M44: =IF('BİLGİ GİRİŞİ'!AH17="","",'BİLGİ GİRİŞİ'!AH17) -> Ayşe YILDIZ | X44: =IF('BİLGİ GİRİŞİ'!AN17="","",'BİLGİ GİRİŞİ'!AN17) ->  | AI44: =IF('BİLGİ GİRİŞİ'!AT17="","",'BİLGİ GİRİŞİ'!AT17) -> Mustafa AYDIN
B45: =IF(B44="","",IF('BİLGİ GİRİŞİ'!AB18="","",'BİLGİ GİRİŞİ'!AB18)) -> Müdür Yardımcısı 1 | M45: =IF(M44="","",IF('BİLGİ GİRİŞİ'!AH18="","",'BİLGİ GİRİŞİ'!AH18)) -> Öğretmen 1 | X45: =IF(X44="","",IF('BİLGİ GİRİŞİ'!AN18="","",'BİLGİ GİRİŞİ'!AN18)) ->  | AI45: =IF(AI44="","",IF('BİLGİ GİRİŞİ'!AT18="","",'BİLGİ GİRİŞİ'!AT18)) -> Okul Müdürü

Sheet 4
A2: DOĞRUDAN TEMİN ONAY BELGESİ
A4: ALIMI YAPAN İDARENİN ADI | L4: =IF('BİLGİ GİRİŞİ'!O8="","",'BİLGİ GİRİŞİ'!O8) -> Atatürk İlkokulu Müdürlüğü
A5: BELGE TARİH VE SAYISI | L5: =IF('BİLGİ GİRİŞİ'!O18="","…../…../……..",'BİLGİ GİRİŞİ'!O18) -> 2023-03-06 | P5: / | Q5: =IF('BİLGİ GİRİŞİ'!S15="","….......................................",'BİLGİ GİRİŞİ'!S15) -> 456789123
A6: =UPPER(IF('BİLGİ GİRİŞİ'!O8="","",'BİLGİ GİRİŞİ'!O8)) -> ATATÜRK İLKOKULU MÜDÜRLÜĞÜ
A7: HARCAMA YETKİLİSİ MAKAMINA
A8: DOĞRUDAN TEMİN İLE İLGİLİ BİLGİLER
A9: DOĞRUDAN TEMİN NUMARASI | P9: =IF('BİLGİ GİRİŞİ'!O11="","",'BİLGİ GİRİŞİ'!O11) -> 22DT1211930
A10: İŞİN ADI | P10: =IF('BİLGİ GİRİŞİ'!O9="","",'BİLGİ GİRİŞİ'!O9) -> Bilişim Malzemeleri Alımı
A11: TEMİN ŞEKLİ | P11: =IF('BİLGİ GİRİŞİ'!O10="","",'BİLGİ GİRİŞİ'!O10) -> 22/d
A12: İŞİN TÜRÜ | P12: Mal Alımı/Hizmet Alımı/Yapım İşi
A14: KULLANILABİLİR ÖDENEK TUTARI | P14: =IF('BİLGİ GİRİŞİ'!AJ13="","",'BİLGİ GİRİŞİ'!AJ13) -> 45000
A15: YAKLAŞIK MALİYET | P15: =IF('3'!AS36="","",'3'!AS36) -> 388000
A16: YATIRIM/PROJE NUMARASI (Varsa)
A17: BÜTÇE TERTİBİ (Varsa) | P17: =IF('BİLGİ GİRİŞİ'!AJ12="","",'BİLGİ GİRİŞİ'!AJ12) -> 6.98.255.9436.13.67.01.03.05.30.02
A18: FİYAT FARKI VERİLECEKSE ŞARTLARI | P18: Verilmeyecektir.
A19: AVANS VERİLECEKSE ŞARTLARI | P19: Verilmeyecektir.
A20: DOKÜMAN HAZIRLANIP HAZIRLANMAYACAĞI | P20: Hazırlanmayacaktır.
A22: DOĞRUDAN TEMİN İLE İLGİLİ DİĞER AÇIKLAMALAR
A23: …..........
A24: ONAY
A25: =CONCATENATE(" ","Yukarıda belirtilen işin Kamu İhale Kanunu'nun ",IF('BİLGİ GİRİŞİ'!O10="",".............................................................................",'BİLGİ GİRİŞİ'!O10)," maddesine göre Doğrudan Temin yoluyla satın alınması hususunu;") -> Yukarıda belirtilen işin Kamu İhale Kanunu'nun 22/d maddesine göre Doğrudan Temin yoluyla satın alınması hususunu;
P28: =IF(P33="","",IF('BİLGİ GİRİŞİ'!AT16="","",'BİLGİ GİRİŞİ'!AT16)) -> OLUR/UYGUNDUR
A29: Olurlarınıza arz ederim. | P29: =IF(P33="","",IF('BİLGİ GİRİŞİ'!O18="","…../…../……..",'BİLGİ GİRİŞİ'!O18)) -> 2023-03-06
A31: =IF(A34="","",IF('BİLGİ GİRİŞİ'!O18="","…../…../……..",'BİLGİ GİRİŞİ'!O18)) -> 2023-03-06
P33: =IF('BİLGİ GİRİŞİ'!AT17="","",'BİLGİ GİRİŞİ'!AT17) -> Mustafa AYDIN
A34: =IF('BİLGİ GİRİŞİ'!AB17="","",'BİLGİ GİRİŞİ'!AB17) -> Ahmet DEMİR | P34: =IF(P33="","",IF('BİLGİ GİRİŞİ'!AT18="","",'BİLGİ GİRİŞİ'!AT18)) -> Okul Müdürü
A35: =IF(A34="","",IF('BİLGİ GİRİŞİ'!AB18="","",'BİLGİ GİRİŞİ'!AB18)) -> Müdür Yardımcısı 1
A38: Ek:İdare Tarafından Hazırlanan Yaklaşık Maliyet Hesap Cetveli

Sheet 5
A2: T.C.
A3: =IF('BİLGİ GİRİŞİ'!O7="","",'BİLGİ GİRİŞİ'!O7) -> BULANIK KAYMAKAMLIĞI
A4: =IF('BİLGİ GİRİŞİ'!O8="","",'BİLGİ GİRİŞİ'!O8) -> Atatürk İlkokulu Müdürlüğü
A6: Sayı | D6: : | E6: =IF('BİLGİ GİRİŞİ'!S15="","",'BİLGİ GİRİŞİ'!S15) -> 456789123 | Z6: =IF('BİLGİ GİRİŞİ'!O19="","…../…../……..",'BİLGİ GİRİŞİ'!O19) -> 2023-03-06
A7: Konu | D7: : | E7: Teklif Vermeye Davet
A9: İLGİLİ GERÇEK/TÜZEL KİŞİLERE
A11: =CONCATENATE(" ","Kurumumuz ihtiyaçlarında kullanılmak üzere aşağıda bilgileri verilen Mal/Hizmet/Yapım İşi, Kamu İhale Kanunu'nun ",IF('BİLGİ GİRİŞİ'!O10="",".............................................................................",'BİLGİ GİRİŞİ'!O10)," maddesine göre Doğrudan Temin yoluyla satın alınacaktır.") -> Kurumumuz ihtiyaçlarında kullanılmak üzere aşağıda bilgileri verilen Mal/Hizmet/Yapım İşi, Kamu İhale Kanunu'nun 22/d maddesine göre Doğrudan Temin yoluyla satın alınacaktır.
A13: =CONCATENATE(" İlgilenmeniz halinde aşağıda bilgileri verilen Mal/Hizmet/Yapım İşi'ne ilişkin, KDV hariç teklifinizi içeren birim fiyat ve toplam fiyatlarının karşılarına yazılarak ", TEXT(IF('BİLGİ GİRİŞİ'!O20="","…../…../……..",'BİLGİ GİRİŞİ'!O20),"gg.aa.yyyy "), " tarihi mesai bitimine kadar Kurumumuza gönderilmesi hususunda;") -> İlgilenmeniz halinde aşağıda bilgileri verilen Mal/Hizmet/Yapım İşi'ne ilişkin, KDV hariç teklifinizi içeren birim fiyat ve toplam fiyatlarının karşılarına yazılarak 08.03.2023 tarihi mesai bitimine kadar Kurumumuza gönderilmesi hususunda;
A16: Gereğini rica ederim/ederiz.
A19: =IF(A20="","",IF('BİLGİ GİRİŞİ'!AH16="","",'BİLGİ GİRİŞİ'!AH16)) -> Piyasa Araştırma Görevlisi | K19: =IF(K20="","",IF('BİLGİ GİRİŞİ'!AN16="","",'BİLGİ GİRİŞİ'!AN16)) ->  | U19: =IF(U20="","",IF('BİLGİ GİRİŞİ'!AB16="","",'BİLGİ GİRİŞİ'!AB16)) -> Piyasa Araştırma Görevlisi
A20: =IF('BİLGİ GİRİŞİ'!AH17="","",'BİLGİ GİRİŞİ'!AH17) -> Ayşe YILDIZ | K20: =IF('BİLGİ GİRİŞİ'!AN17="","",'BİLGİ GİRİŞİ'!AN17) ->  | U20: =IF('BİLGİ GİRİŞİ'!AB17="","",'BİLGİ GİRİŞİ'!AB17) -> Ahmet DEMİR
A21: =IF('BİLGİ GİRİŞİ'!AH18="","",'BİLGİ GİRİŞİ'!AH18) -> Öğretmen 1 | K21: =IF(K20="","",IF('BİLGİ GİRİŞİ'!AN18="","",'BİLGİ GİRİŞİ'!AN18)) ->  | U21: =IF('BİLGİ GİRİŞİ'!AB18="","",'BİLGİ GİRİŞİ'!AB18) -> Müdür Yardımcısı 1
A24: =IF('BİLGİ GİRİŞİ'!O8="","",CONCATENATE(UPPER('BİLGİ GİRİŞİ'!O8),"",UPPER(IF('BİLGİ GİRİŞİ'!O8="","",'BİLGİ GİRİŞİ'!AN8)))) -> ATATÜRK İLKOKULU MÜDÜRLÜĞÜNE
A26: Kurumunuzca satın alınacak Mal/Hizmet/Yapım İşi'ne ilişkin teklifimizi içeren birim fiyatlar ve toplam fiyatlar aşağıya çıkarılmıştır.
A28: Gereğini arz ederim/ederiz.
A30: MAL'IN/HİZMET'İN/YAPIM İŞİ'NİN
A31: S | B31: Kalem/KısımBilgileri | P31: Birimi | T31: Miktarı | X31: Birim Fiyatı | AB31: Toplam Fiyatı
A32: =IF('BİLGİ GİRİŞİ'!D30="","",'BİLGİ GİRİŞİ'!D30) -> 1 | B32: =IF('BİLGİ GİRİŞİ'!E30="","",'BİLGİ GİRİŞİ'!E30) -> AIO (All In One) Masaüstü Bilgisayar | P32: =IF('BİLGİ GİRİŞİ'!W30="","",'BİLGİ GİRİŞİ'!W30) -> Adet | T32: =IF('BİLGİ GİRİŞİ'!T30="","",IF('BİLGİ GİRİŞİ'!$BO$28=1,"1",'BİLGİ GİRİŞİ'!T30)) -> 1
A33: =IF('BİLGİ GİRİŞİ'!D31="","",'BİLGİ GİRİŞİ'!D31) -> 2 | B33: =IF('BİLGİ GİRİŞİ'!E31="","",'BİLGİ GİRİŞİ'!E31) -> Fotokopi Makinesi | P33: =IF('BİLGİ GİRİŞİ'!W31="","",'BİLGİ GİRİŞİ'!W31) -> Adet | T33: =IF('BİLGİ GİRİŞİ'!T31="","",IF('BİLGİ GİRİŞİ'!$BO$28=1,"1",'BİLGİ GİRİŞİ'!T31)) -> 1
A34: =IF('BİLGİ GİRİŞİ'!D32="","",'BİLGİ GİRİŞİ'!D32) -> 3 | B34: =IF('BİLGİ GİRİŞİ'!E32="","",'BİLGİ GİRİŞİ'!E32) -> Projektör | P34: =IF('BİLGİ GİRİŞİ'!W32="","",'BİLGİ GİRİŞİ'!W32) -> Adet | T34: =IF('BİLGİ GİRİŞİ'!T32="","",IF('BİLGİ GİRİŞİ'!$BO$28=1,"1",'BİLGİ GİRİŞİ'!T32)) -> 1
A35: =IF('BİLGİ GİRİŞİ'!D33="","",'BİLGİ GİRİŞİ'!D33) ->  | B35: =IF('BİLGİ GİRİŞİ'!E33="","",'BİLGİ GİRİŞİ'!E33) ->  | P35: =IF('BİLGİ GİRİŞİ'!W33="","",'BİLGİ GİRİŞİ'!W33) ->  | T35: =IF('BİLGİ GİRİŞİ'!T33="","",IF('BİLGİ GİRİŞİ'!$BO$28=1,"1",'BİLGİ GİRİŞİ'!T33)) -> 
A36: =IF('BİLGİ GİRİŞİ'!D34="","",'BİLGİ GİRİŞİ'!D34) ->  | B36: =IF('BİLGİ GİRİŞİ'!E34="","",'BİLGİ GİRİŞİ'!E34) ->  | P36: =IF('BİLGİ GİRİŞİ'!W34="","",'BİLGİ GİRİŞİ'!W34) ->  | T36: =IF('BİLGİ GİRİŞİ'!T34="","",IF('BİLGİ GİRİŞİ'!$BO$28=1,"1",'BİLGİ GİRİŞİ'!T34)) -> 
A37: =IF('BİLGİ GİRİŞİ'!D35="","",'BİLGİ GİRİŞİ'!D35) ->  | B37: =IF('BİLGİ GİRİŞİ'!E35="","",'BİLGİ GİRİŞİ'!E35) ->  | P37: =IF('BİLGİ GİRİŞİ'!W35="","",'BİLGİ GİRİŞİ'!W35) ->  | T37: =IF('BİLGİ GİRİŞİ'!T35="","",IF('BİLGİ GİRİŞİ'!$BO$28=1,"1",'BİLGİ GİRİŞİ'!T35)) -> 
A38: =IF('BİLGİ GİRİŞİ'!D36="","",'BİLGİ GİRİŞİ'!D36) ->  | B38: =IF('BİLGİ GİRİŞİ'!E36="","",'BİLGİ GİRİŞİ'!E36) ->  | P38: =IF('BİLGİ GİRİŞİ'!W36="","",'BİLGİ GİRİŞİ'!W36) ->  | T38: =IF('BİLGİ GİRİŞİ'!T36="","",IF('BİLGİ GİRİŞİ'!$BO$28=1,"1",'BİLGİ GİRİŞİ'!T36)) -> 
A39: =IF('BİLGİ GİRİŞİ'!D37="","",'BİLGİ GİRİŞİ'!D37) ->  | B39: =IF('BİLGİ GİRİŞİ'!E37="","",'BİLGİ GİRİŞİ'!E37) ->  | P39: =IF('BİLGİ GİRİŞİ'!W37="","",'BİLGİ GİRİŞİ'!W37) ->  | T39: =IF('BİLGİ GİRİŞİ'!T37="","",IF('BİLGİ GİRİŞİ'!$BO$28=1,"1",'BİLGİ GİRİŞİ'!T37)) -> 
A40: =IF('BİLGİ GİRİŞİ'!D38="","",'BİLGİ GİRİŞİ'!D38) ->  | B40: =IF('BİLGİ GİRİŞİ'!E38="","",'BİLGİ GİRİŞİ'!E38) ->  | P40: =IF('BİLGİ GİRİŞİ'!W38="","",'BİLGİ GİRİŞİ'!W38) ->  | T40: =IF('BİLGİ GİRİŞİ'!T38="","",IF('BİLGİ GİRİŞİ'!$BO$28=1,"1",'BİLGİ GİRİŞİ'!T38)) -> 
A41: =IF('BİLGİ GİRİŞİ'!D39="","",'BİLGİ GİRİŞİ'!D39) ->  | B41: =IF('BİLGİ GİRİŞİ'!E39="","",'BİLGİ GİRİŞİ'!E39) ->  | P41: =IF('BİLGİ GİRİŞİ'!W39="","",'BİLGİ GİRİŞİ'!W39) ->  | T41: =IF('BİLGİ GİRİŞİ'!T39="","",IF('BİLGİ GİRİŞİ'!$BO$28=1,"1",'BİLGİ GİRİŞİ'!T39)) -> 
A42: =IF('BİLGİ GİRİŞİ'!D40="","",'BİLGİ GİRİŞİ'!D40) ->  | B42: =IF('BİLGİ GİRİŞİ'!E40="","",'BİLGİ GİRİŞİ'!E40) ->  | P42: =IF('BİLGİ GİRİŞİ'!W40="","",'BİLGİ GİRİŞİ'!W40) ->  | T42: =IF('BİLGİ GİRİŞİ'!T40="","",IF('BİLGİ GİRİŞİ'!$BO$28=1,"1",'BİLGİ GİRİŞİ'!T40)) -> 
A43: =IF('BİLGİ GİRİŞİ'!D41="","",'BİLGİ GİRİŞİ'!D41) ->  | B43: =IF('BİLGİ GİRİŞİ'!E41="","",'BİLGİ GİRİŞİ'!E41) ->  | P43: =IF('BİLGİ GİRİŞİ'!W41="","",'BİLGİ GİRİŞİ'!W41) ->  | T43: =IF('BİLGİ GİRİŞİ'!T41="","",IF('BİLGİ GİRİŞİ'!$BO$28=1,"1",'BİLGİ GİRİŞİ'!T41)) -> 
A44: =IF('BİLGİ GİRİŞİ'!D42="","",'BİLGİ GİRİŞİ'!D42) ->  | B44: =IF('BİLGİ GİRİŞİ'!E42="","",'BİLGİ GİRİŞİ'!E42) ->  | P44: =IF('BİLGİ GİRİŞİ'!W42="","",'BİLGİ GİRİŞİ'!W42) ->  | T44: =IF('BİLGİ GİRİŞİ'!T42="","",IF('BİLGİ GİRİŞİ'!$BO$28=1,"1",'BİLGİ GİRİŞİ'!T42)) -> 
A45: =IF('BİLGİ GİRİŞİ'!D43="","",'BİLGİ GİRİŞİ'!D43) ->  | B45: =IF('BİLGİ GİRİŞİ'!E43="","",'BİLGİ GİRİŞİ'!E43) ->  | P45: =IF('BİLGİ GİRİŞİ'!W43="","",'BİLGİ GİRİŞİ'!W43) ->  | T45: =IF('BİLGİ GİRİŞİ'!T43="","",IF('BİLGİ GİRİŞİ'!$BO$28=1,"1",'BİLGİ GİRİŞİ'!T43)) -> 
A46: =IF('BİLGİ GİRİŞİ'!D44="","",'BİLGİ GİRİŞİ'!D44) ->  | B46: =IF('BİLGİ GİRİŞİ'!E44="","",'BİLGİ GİRİŞİ'!E44) ->  | P46: =IF('BİLGİ GİRİŞİ'!W44="","",'BİLGİ GİRİŞİ'!W44) ->  | T46: =IF('BİLGİ GİRİŞİ'!T44="","",IF('BİLGİ GİRİŞİ'!$BO$28=1,"1",'BİLGİ GİRİŞİ'!T44)) -> 
A47: =IF('BİLGİ GİRİŞİ'!D45="","",'BİLGİ GİRİŞİ'!D45) ->  | B47: =IF('BİLGİ GİRİŞİ'!E45="","",'BİLGİ GİRİŞİ'!E45) ->  | P47: =IF('BİLGİ GİRİŞİ'!W45="","",'BİLGİ GİRİŞİ'!W45) ->  | T47: =IF('BİLGİ GİRİŞİ'!T45="","",IF('BİLGİ GİRİŞİ'!$BO$28=1,"1",'BİLGİ GİRİŞİ'!T45)) -> 
A48: =IF('BİLGİ GİRİŞİ'!D46="","",'BİLGİ GİRİŞİ'!D46) ->  | B48: =IF('BİLGİ GİRİŞİ'!E46="","",'BİLGİ GİRİŞİ'!E46) ->  | P48: =IF('BİLGİ GİRİŞİ'!W46="","",'BİLGİ GİRİŞİ'!W46) ->  | T48: =IF('BİLGİ GİRİŞİ'!T46="","",IF('BİLGİ GİRİŞİ'!$BO$28=1,"1",'BİLGİ GİRİŞİ'!T46)) -> 
A49: =IF('BİLGİ GİRİŞİ'!D47="","",'BİLGİ GİRİŞİ'!D47) ->  | B49: =IF('BİLGİ GİRİŞİ'!E47="","",'BİLGİ GİRİŞİ'!E47) ->  | P49: =IF('BİLGİ GİRİŞİ'!W47="","",'BİLGİ GİRİŞİ'!W47) ->  | T49: =IF('BİLGİ GİRİŞİ'!T47="","",IF('BİLGİ GİRİŞİ'!$BO$28=1,"1",'BİLGİ GİRİŞİ'!T47)) -> 
A50: =IF('BİLGİ GİRİŞİ'!D48="","",'BİLGİ GİRİŞİ'!D48) ->  | B50: =IF('BİLGİ GİRİŞİ'!E48="","",'BİLGİ GİRİŞİ'!E48) ->  | P50: =IF('BİLGİ GİRİŞİ'!W48="","",'BİLGİ GİRİŞİ'!W48) ->  | T50: =IF('BİLGİ GİRİŞİ'!T48="","",IF('BİLGİ GİRİŞİ'!$BO$28=1,"1",'BİLGİ GİRİŞİ'!T48)) -> 
A51: =IF('BİLGİ GİRİŞİ'!D49="","",'BİLGİ GİRİŞİ'!D49) ->  | B51: =IF('BİLGİ GİRİŞİ'!E49="","",'BİLGİ GİRİŞİ'!E49) ->  | P51: =IF('BİLGİ GİRİŞİ'!W49="","",'BİLGİ GİRİŞİ'!W49) ->  | T51: =IF('BİLGİ GİRİŞİ'!T49="","",IF('BİLGİ GİRİŞİ'!$BO$28=1,"1",'BİLGİ GİRİŞİ'!T49)) -> 
A52: TOPLAM (KDV Hariç)
U54: KİŞİ/FİRMA KAŞE/İMZA

Sheet 6
A2: İdarenin Adı | K2: : | L2: =IF('BİLGİ GİRİŞİ'!O8="","",'BİLGİ GİRİŞİ'!O8) -> Atatürk İlkokulu Müdürlüğü
A3: Doğrudan Temin Numarası | K3: : | L3: =IF('BİLGİ GİRİŞİ'!O11="","",'BİLGİ GİRİŞİ'!O11) -> 22DT1211930
A4: Mal/Hizmet/Yapım Adı, Niteliği | K4: : | L4: =IF('BİLGİ GİRİŞİ'!O9="","",'BİLGİ GİRİŞİ'!O9) -> Bilişim Malzemeleri Alımı
A5: Alım/Görevlendirme Onay Tarihi/sayısı | K5: : | L5: =IF('BİLGİ GİRİŞİ'!O15="","",'BİLGİ GİRİŞİ'!O15) -> 2023-03-06 | P5: / | Q5: =IF('BİLGİ GİRİŞİ'!S15="","",'BİLGİ GİRİŞİ'!S15) -> 456789123
A8: İDARİ ŞARTLAR
A9: =IF('BİLGİ GİRİŞİ'!D86="","",'BİLGİ GİRİŞİ'!D86) -> 1 | B9: =IF(C9="","","-") -> - | C9: =IF('BİLGİ GİRİŞİ'!E86="","",'BİLGİ GİRİŞİ'!E86) -> Bu bent boş bırakılmıştır.
A10: =IF('BİLGİ GİRİŞİ'!D87="","",'BİLGİ GİRİŞİ'!D87) ->  | B10: =IF(C10="","","-") ->  | C10: =IF('BİLGİ GİRİŞİ'!E87="","",'BİLGİ GİRİŞİ'!E87) -> 
A11: =IF('BİLGİ GİRİŞİ'!D88="","",'BİLGİ GİRİŞİ'!D88) ->  | C11: =IF('BİLGİ GİRİŞİ'!E88="","",'BİLGİ GİRİŞİ'!E88) -> 
A12: =IF('BİLGİ GİRİŞİ'!D89="","",'BİLGİ GİRİŞİ'!D89) ->  | C12: =IF('BİLGİ GİRİŞİ'!E89="","",'BİLGİ GİRİŞİ'!E89) -> 
A13: =IF('BİLGİ GİRİŞİ'!D90="","",'BİLGİ GİRİŞİ'!D90) ->  | C13: =IF('BİLGİ GİRİŞİ'!E90="","",'BİLGİ GİRİŞİ'!E90) -> 
A14: =IF('BİLGİ GİRİŞİ'!D91="","",'BİLGİ GİRİŞİ'!D91) ->  | C14: =IF('BİLGİ GİRİŞİ'!E91="","",'BİLGİ GİRİŞİ'!E91) -> 
A15: =IF('BİLGİ GİRİŞİ'!D92="","",'BİLGİ GİRİŞİ'!D92) ->  | C15: =IF('BİLGİ GİRİŞİ'!E92="","",'BİLGİ GİRİŞİ'!E92) -> 
A16: =IF('BİLGİ GİRİŞİ'!D93="","",'BİLGİ GİRİŞİ'!D93) ->  | C16: =IF('BİLGİ GİRİŞİ'!E93="","",'BİLGİ GİRİŞİ'!E93) -> 
A17: =IF('BİLGİ GİRİŞİ'!D94="","",'BİLGİ GİRİŞİ'!D94) ->  | B17: =IF(C17="","","-") ->  | C17: =IF('BİLGİ GİRİŞİ'!E94="","",'BİLGİ GİRİŞİ'!E94) -> 
A18: =IF('BİLGİ GİRİŞİ'!D95="","",'BİLGİ GİRİŞİ'!D95) ->  | B18: =IF(C18="","","-") ->  | C18: =IF('BİLGİ GİRİŞİ'!E95="","",'BİLGİ GİRİŞİ'!E95) -> 
A19: =IF('BİLGİ GİRİŞİ'!D96="","",'BİLGİ GİRİŞİ'!D96) ->  | B19: =IF(C19="","","-") ->  | C19: =IF('BİLGİ GİRİŞİ'!E96="","",'BİLGİ GİRİŞİ'!E96) -> 
A20: =IF('BİLGİ GİRİŞİ'!D97="","",'BİLGİ GİRİŞİ'!D97) ->  | C20: =IF('BİLGİ GİRİŞİ'!E97="","",'BİLGİ GİRİŞİ'!E97) -> 
A21: =IF('BİLGİ GİRİŞİ'!D98="","",'BİLGİ GİRİŞİ'!D98) ->  | C21: =IF('BİLGİ GİRİŞİ'!E98="","",'BİLGİ GİRİŞİ'!E98) -> 
A22: =IF('BİLGİ GİRİŞİ'!D99="","",'BİLGİ GİRİŞİ'!D99) ->  | C22: =IF('BİLGİ GİRİŞİ'!E99="","",'BİLGİ GİRİŞİ'!E99) -> 
A23: =IF('BİLGİ GİRİŞİ'!D100="","",'BİLGİ GİRİŞİ'!D100) ->  | C23: =IF('BİLGİ GİRİŞİ'!E100="","",'BİLGİ GİRİŞİ'!E100) -> 
A25: TEKNİK ŞARTLAR
A26: =IF('BİLGİ GİRİŞİ'!D103="","",'BİLGİ GİRİŞİ'!D103) -> 1 | B26: =IF(C26="","","-") -> - | C26: =IF('BİLGİ GİRİŞİ'!E103="","",'BİLGİ GİRİŞİ'!E103) -> Bu bent boş bırakılmıştır.
A27: =IF('BİLGİ GİRİŞİ'!D104="","",'BİLGİ GİRİŞİ'!D104) ->  | C27: =IF('BİLGİ GİRİŞİ'!E104="","",'BİLGİ GİRİŞİ'!E104) -> 
A28: =IF('BİLGİ GİRİŞİ'!D105="","",'BİLGİ GİRİŞİ'!D105) ->  | C28: =IF('BİLGİ GİRİŞİ'!E105="","",'BİLGİ GİRİŞİ'!E105) -> 
A29: =IF('BİLGİ GİRİŞİ'!D106="","",'BİLGİ GİRİŞİ'!D106) ->  | C29: =IF('BİLGİ GİRİŞİ'!E106="","",'BİLGİ GİRİŞİ'!E106) -> 
A30: =IF('BİLGİ GİRİŞİ'!D107="","",'BİLGİ GİRİŞİ'!D107) ->  | C30: =IF('BİLGİ GİRİŞİ'!E107="","",'BİLGİ GİRİŞİ'!E107) -> 
A31: =IF('BİLGİ GİRİŞİ'!D108="","",'BİLGİ GİRİŞİ'!D108) ->  | C31: =IF('BİLGİ GİRİŞİ'!E108="","",'BİLGİ GİRİŞİ'!E108) -> 
A32: =IF('BİLGİ GİRİŞİ'!D109="","",'BİLGİ GİRİŞİ'!D109) ->  | C32: =IF('BİLGİ GİRİŞİ'!E109="","",'BİLGİ GİRİŞİ'!E109) -> 
A33: =IF('BİLGİ GİRİŞİ'!D110="","",'BİLGİ GİRİŞİ'!D110) ->  | C33: =IF('BİLGİ GİRİŞİ'!E110="","",'BİLGİ GİRİŞİ'!E110) -> 
A34: =IF('BİLGİ GİRİŞİ'!D111="","",'BİLGİ GİRİŞİ'!D111) ->  | C34: =IF('BİLGİ GİRİŞİ'!E111="","",'BİLGİ GİRİŞİ'!E111) -> 
A35: =IF('BİLGİ GİRİŞİ'!D112="","",'BİLGİ GİRİŞİ'!D112) ->  | C35: =IF('BİLGİ GİRİŞİ'!E112="","",'BİLGİ GİRİŞİ'!E112) -> 
A36: =IF('BİLGİ GİRİŞİ'!D113="","",'BİLGİ GİRİŞİ'!D113) ->  | C36: =IF('BİLGİ GİRİŞİ'!E113="","",'BİLGİ GİRİŞİ'!E113) -> 
A37: =IF('BİLGİ GİRİŞİ'!D114="","",'BİLGİ GİRİŞİ'!D114) ->  | C37: =IF('BİLGİ GİRİŞİ'!E114="","",'BİLGİ GİRİŞİ'!E114) -> 
A38: =IF('BİLGİ GİRİŞİ'!D115="","",'BİLGİ GİRİŞİ'!D115) ->  | C38: =IF('BİLGİ GİRİŞİ'!E115="","",'BİLGİ GİRİŞİ'!E115) -> 
A39: =IF('BİLGİ GİRİŞİ'!D116="","",'BİLGİ GİRİŞİ'!D116) ->  | C39: =IF('BİLGİ GİRİŞİ'!E116="","",'BİLGİ GİRİŞİ'!E116) -> 
A40: =IF('BİLGİ GİRİŞİ'!D117="","",'BİLGİ GİRİŞİ'!D117) ->  | C40: =IF('BİLGİ GİRİŞİ'!E117="","",'BİLGİ GİRİŞİ'!E117) -> 
A41: =IF('BİLGİ GİRİŞİ'!D118="","",'BİLGİ GİRİŞİ'!D118) ->  | C41: =IF('BİLGİ GİRİŞİ'!E118="","",'BİLGİ GİRİŞİ'!E118) -> 
A42: =IF('BİLGİ GİRİŞİ'!D119="","",'BİLGİ GİRİŞİ'!D119) ->  | C42: =IF('BİLGİ GİRİŞİ'!E119="","",'BİLGİ GİRİŞİ'!E119) -> 
A43: =IF('BİLGİ GİRİŞİ'!D120="","",'BİLGİ GİRİŞİ'!D120) ->  | C43: =IF('BİLGİ GİRİŞİ'!E120="","",'BİLGİ GİRİŞİ'!E120) -> 
A44: =IF('BİLGİ GİRİŞİ'!D121="","",'BİLGİ GİRİŞİ'!D121) ->  | C44: =IF('BİLGİ GİRİŞİ'!E121="","",'BİLGİ GİRİŞİ'!E121) -> 
A45: =IF('BİLGİ GİRİŞİ'!D122="","",'BİLGİ GİRİŞİ'!D122) ->  | C45: =IF('BİLGİ GİRİŞİ'!E122="","",'BİLGİ GİRİŞİ'!E122) -> 

Sheet 7
A2: PİYASA FİYAT ARAŞTIRMA TUTANAĞI
A4: İdarenin Adı | K4: : | L4: =IF('BİLGİ GİRİŞİ'!O8="","",'BİLGİ GİRİŞİ'!O8) -> Atatürk İlkokulu Müdürlüğü | AQ4: =IF('BİLGİ GİRİŞİ'!O22="","…../…../……..",'BİLGİ GİRİŞİ'!O22) -> 2023-03-08
A5: Doğrudan Temin Numarası | K5: : | L5: =IF('BİLGİ GİRİŞİ'!O11="","",'BİLGİ GİRİŞİ'!O11) -> 22DT1211930
A6: İş'in Adı, Türü | K6: : | L6: =IF('BİLGİ GİRİŞİ'!O9="","",'BİLGİ GİRİŞİ'!O9) -> Bilişim Malzemeleri Alımı
A7: Alım/Görevlendirme Onay Tarihi/sayısı | K7: : | L7: =IF('BİLGİ GİRİŞİ'!O15="","",'BİLGİ GİRİŞİ'!O15) -> 2023-03-06 | P7: / | Q7: =IF('BİLGİ GİRİŞİ'!S15="","",'BİLGİ GİRİŞİ'!S15) -> 456789123
A9: MAL'IN/HİZMET'İN/YAPIM İŞİ'NİN | X9: TEKLİF VEREN GERÇEK/TÜZEL KİŞİLER VE TEKLİF FİYATLARI
A10: S | B10: Kalem/KısımBilgileri | P10: Birimi | T10: Miktarı | X10: =IF('BİLGİ GİRİŞİ'!AB55="","",'BİLGİ GİRİŞİ'!AB55) -> A GERÇEK/TÜZEL KİŞİSİ | AF10: =IF('BİLGİ GİRİŞİ'!AJ55="","",'BİLGİ GİRİŞİ'!AJ55) -> B GERÇEK/TÜZEL KİŞİSİ | AN10: =IF('BİLGİ GİRİŞİ'!AR55="","",'BİLGİ GİRİŞİ'!AR55) -> D GERÇEK/TÜZEL KİŞİSİ
X11: Birim Fiyat | AB11: Toplam Fiyat | AF11: Birim Fiyat | AJ11: Toplam Fiyat | AN11: Birim Fiyat | AR11: Toplam Fiyat
A12: =IF('BİLGİ GİRİŞİ'!D30="","",'BİLGİ GİRİŞİ'!D30) -> 1 | B12: =IF('BİLGİ GİRİŞİ'!E30="","",'BİLGİ GİRİŞİ'!E30) -> AIO (All In One) Masaüstü Bilgisayar | P12: =IF('BİLGİ GİRİŞİ'!W30="","",'BİLGİ GİRİŞİ'!W30) -> Adet | T12: =IF('BİLGİ GİRİŞİ'!T30="","",'BİLGİ GİRİŞİ'!T30) -> 20 | X12: =IF('BİLGİ GİRİŞİ'!AB57="","",'BİLGİ GİRİŞİ'!AB57) -> 13000 | AB12: =IF('BİLGİ GİRİŞİ'!AF57="","",'BİLGİ GİRİŞİ'!AF57) -> 260000 | AF12: =IF('BİLGİ GİRİŞİ'!AJ57="","",'BİLGİ GİRİŞİ'!AJ57) -> 11000 | AJ12: =IF('BİLGİ GİRİŞİ'!AN57="","",'BİLGİ GİRİŞİ'!AN57) -> 220000 | AN12: =IF('BİLGİ GİRİŞİ'!AR57="","",'BİLGİ GİRİŞİ'!AR57) -> 12000 | AR12: =IF('BİLGİ GİRİŞİ'!AV57="","",'BİLGİ GİRİŞİ'!AV57) -> 240000
A13: =IF('BİLGİ GİRİŞİ'!D31="","",'BİLGİ GİRİŞİ'!D31) -> 2 | B13: =IF('BİLGİ GİRİŞİ'!E31="","",'BİLGİ GİRİŞİ'!E31) -> Fotokopi Makinesi | P13: =IF('BİLGİ GİRİŞİ'!W31="","",'BİLGİ GİRİŞİ'!W31) -> Adet | T13: =IF('BİLGİ GİRİŞİ'!T31="","",'BİLGİ GİRİŞİ'!T31) -> 10 | X13: =IF('BİLGİ GİRİŞİ'!AB58="","",'BİLGİ GİRİŞİ'!AB58) -> 10000 | AB13: =IF('BİLGİ GİRİŞİ'!AF58="","",'BİLGİ GİRİŞİ'!AF58) -> 100000 | AF13: =IF('BİLGİ GİRİŞİ'!AJ58="","",'BİLGİ GİRİŞİ'!AJ58) -> 9000 | AJ13: =IF('BİLGİ GİRİŞİ'!AN58="","",'BİLGİ GİRİŞİ'!AN58) -> 90000 | AN13: =IF('BİLGİ GİRİŞİ'!AR58="","",'BİLGİ GİRİŞİ'!AR58) -> 9000 | AR13: =IF('BİLGİ GİRİŞİ'!AV58="","",'BİLGİ GİRİŞİ'!AV58) -> 90000
A14: =IF('BİLGİ GİRİŞİ'!D32="","",'BİLGİ GİRİŞİ'!D32) -> 3 | B14: =IF('BİLGİ GİRİŞİ'!E32="","",'BİLGİ GİRİŞİ'!E32) -> Projektör | P14: =IF('BİLGİ GİRİŞİ'!W32="","",'BİLGİ GİRİŞİ'!W32) -> Adet | T14: =IF('BİLGİ GİRİŞİ'!T32="","",'BİLGİ GİRİŞİ'!T32) -> 4 | X14: =IF('BİLGİ GİRİŞİ'!AB59="","",'BİLGİ GİRİŞİ'!AB59) -> 7000 | AB14: =IF('BİLGİ GİRİŞİ'!AF59="","",'BİLGİ GİRİŞİ'!AF59) -> 28000 | AF14: =IF('BİLGİ GİRİŞİ'!AJ59="","",'BİLGİ GİRİŞİ'!AJ59) -> 6000 | AJ14: =IF('BİLGİ GİRİŞİ'!AN59="","",'BİLGİ GİRİŞİ'!AN59) -> 24000 | AN14: =IF('BİLGİ GİRİŞİ'!AR59="","",'BİLGİ GİRİŞİ'!AR59) -> 7000 | AR14: =IF('BİLGİ GİRİŞİ'!AV59="","",'BİLGİ GİRİŞİ'!AV59) -> 28000
A15: =IF('BİLGİ GİRİŞİ'!D33="","",'BİLGİ GİRİŞİ'!D33) ->  | B15: =IF('BİLGİ GİRİŞİ'!E33="","",'BİLGİ GİRİŞİ'!E33) ->  | P15: =IF('BİLGİ GİRİŞİ'!W33="","",'BİLGİ GİRİŞİ'!W33) ->  | T15: =IF('BİLGİ GİRİŞİ'!T33="","",'BİLGİ GİRİŞİ'!T33) ->  | X15: =IF('BİLGİ GİRİŞİ'!AB60="","",'BİLGİ GİRİŞİ'!AB60) ->  | AB15: =IF('BİLGİ GİRİŞİ'!AF60="","",'BİLGİ GİRİŞİ'!AF60) ->  | AF15: =IF('BİLGİ GİRİŞİ'!AJ60="","",'BİLGİ GİRİŞİ'!AJ60) ->  | AJ15: =IF('BİLGİ GİRİŞİ'!AN60="","",'BİLGİ GİRİŞİ'!AN60) ->  | AN15: =IF('BİLGİ GİRİŞİ'!AR60="","",'BİLGİ GİRİŞİ'!AR60) ->  | AR15: =IF('BİLGİ GİRİŞİ'!AV60="","",'BİLGİ GİRİŞİ'!AV60) -> 
A16: =IF('BİLGİ GİRİŞİ'!D34="","",'BİLGİ GİRİŞİ'!D34) ->  | B16: =IF('BİLGİ GİRİŞİ'!E34="","",'BİLGİ GİRİŞİ'!E34) ->  | P16: =IF('BİLGİ GİRİŞİ'!W34="","",'BİLGİ GİRİŞİ'!W34) ->  | T16: =IF('BİLGİ GİRİŞİ'!T34="","",'BİLGİ GİRİŞİ'!T34) ->  | X16: =IF('BİLGİ GİRİŞİ'!AB61="","",'BİLGİ GİRİŞİ'!AB61) ->  | AB16: =IF('BİLGİ GİRİŞİ'!AF61="","",'BİLGİ GİRİŞİ'!AF61) ->  | AF16: =IF('BİLGİ GİRİŞİ'!AJ61="","",'BİLGİ GİRİŞİ'!AJ61) ->  | AJ16: =IF('BİLGİ GİRİŞİ'!AN61="","",'BİLGİ GİRİŞİ'!AN61) ->  | AN16: =IF('BİLGİ GİRİŞİ'!AR61="","",'BİLGİ GİRİŞİ'!AR61) ->  | AR16: =IF('BİLGİ GİRİŞİ'!AV61="","",'BİLGİ GİRİŞİ'!AV61) -> 
A17: =IF('BİLGİ GİRİŞİ'!D35="","",'BİLGİ GİRİŞİ'!D35) ->  | B17: =IF('BİLGİ GİRİŞİ'!E35="","",'BİLGİ GİRİŞİ'!E35) ->  | P17: =IF('BİLGİ GİRİŞİ'!W35="","",'BİLGİ GİRİŞİ'!W35) ->  | T17: =IF('BİLGİ GİRİŞİ'!T35="","",'BİLGİ GİRİŞİ'!T35) ->  | X17: =IF('BİLGİ GİRİŞİ'!AB62="","",'BİLGİ GİRİŞİ'!AB62) ->  | AB17: =IF('BİLGİ GİRİŞİ'!AF62="","",'BİLGİ GİRİŞİ'!AF62) ->  | AF17: =IF('BİLGİ GİRİŞİ'!AJ62="","",'BİLGİ GİRİŞİ'!AJ62) ->  | AJ17: =IF('BİLGİ GİRİŞİ'!AN62="","",'BİLGİ GİRİŞİ'!AN62) ->  | AN17: =IF('BİLGİ GİRİŞİ'!AR62="","",'BİLGİ GİRİŞİ'!AR62) ->  | AR17: =IF('BİLGİ GİRİŞİ'!AV62="","",'BİLGİ GİRİŞİ'!AV62) -> 
A18: =IF('BİLGİ GİRİŞİ'!D36="","",'BİLGİ GİRİŞİ'!D36) ->  | B18: =IF('BİLGİ GİRİŞİ'!E36="","",'BİLGİ GİRİŞİ'!E36) ->  | P18: =IF('BİLGİ GİRİŞİ'!W36="","",'BİLGİ GİRİŞİ'!W36) ->  | T18: =IF('BİLGİ GİRİŞİ'!T36="","",'BİLGİ GİRİŞİ'!T36) ->  | X18: =IF('BİLGİ GİRİŞİ'!AB63="","",'BİLGİ GİRİŞİ'!AB63) ->  | AB18: =IF('BİLGİ GİRİŞİ'!AF63="","",'BİLGİ GİRİŞİ'!AF63) ->  | AF18: =IF('BİLGİ GİRİŞİ'!AJ63="","",'BİLGİ GİRİŞİ'!AJ63) ->  | AJ18: =IF('BİLGİ GİRİŞİ'!AN63="","",'BİLGİ GİRİŞİ'!AN63) ->  | AN18: =IF('BİLGİ GİRİŞİ'!AR63="","",'BİLGİ GİRİŞİ'!AR63) ->  | AR18: =IF('BİLGİ GİRİŞİ'!AV63="","",'BİLGİ GİRİŞİ'!AV63) -> 
A19: =IF('BİLGİ GİRİŞİ'!D37="","",'BİLGİ GİRİŞİ'!D37) ->  | B19: =IF('BİLGİ GİRİŞİ'!E37="","",'BİLGİ GİRİŞİ'!E37) ->  | P19: =IF('BİLGİ GİRİŞİ'!W37="","",'BİLGİ GİRİŞİ'!W37) ->  | T19: =IF('BİLGİ GİRİŞİ'!T37="","",'BİLGİ GİRİŞİ'!T37) ->  | X19: =IF('BİLGİ GİRİŞİ'!AB64="","",'BİLGİ GİRİŞİ'!AB64) ->  | AB19: =IF('BİLGİ GİRİŞİ'!AF64="","",'BİLGİ GİRİŞİ'!AF64) ->  | AF19: =IF('BİLGİ GİRİŞİ'!AJ64="","",'BİLGİ GİRİŞİ'!AJ64) ->  | AJ19: =IF('BİLGİ GİRİŞİ'!AN64="","",'BİLGİ GİRİŞİ'!AN64) ->  | AN19: =IF('BİLGİ GİRİŞİ'!AR64="","",'BİLGİ GİRİŞİ'!AR64) ->  | AR19: =IF('BİLGİ GİRİŞİ'!AV64="","",'BİLGİ GİRİŞİ'!AV64) -> 
A20: =IF('BİLGİ GİRİŞİ'!D38="","",'BİLGİ GİRİŞİ'!D38) ->  | B20: =IF('BİLGİ GİRİŞİ'!E38="","",'BİLGİ GİRİŞİ'!E38) ->  | P20: =IF('BİLGİ GİRİŞİ'!W38="","",'BİLGİ GİRİŞİ'!W38) ->  | T20: =IF('BİLGİ GİRİŞİ'!T38="","",'BİLGİ GİRİŞİ'!T38) ->  | X20: =IF('BİLGİ GİRİŞİ'!AB65="","",'BİLGİ GİRİŞİ'!AB65) ->  | AB20: =IF('BİLGİ GİRİŞİ'!AF65="","",'BİLGİ GİRİŞİ'!AF65) ->  | AF20: =IF('BİLGİ GİRİŞİ'!AJ65="","",'BİLGİ GİRİŞİ'!AJ65) ->  | AJ20: =IF('BİLGİ GİRİŞİ'!AN65="","",'BİLGİ GİRİŞİ'!AN65) ->  | AN20: =IF('BİLGİ GİRİŞİ'!AR65="","",'BİLGİ GİRİŞİ'!AR65) ->  | AR20: =IF('BİLGİ GİRİŞİ'!AV65="","",'BİLGİ GİRİŞİ'!AV65) -> 
A21: =IF('BİLGİ GİRİŞİ'!D39="","",'BİLGİ GİRİŞİ'!D39) ->  | B21: =IF('BİLGİ GİRİŞİ'!E39="","",'BİLGİ GİRİŞİ'!E39) ->  | P21: =IF('BİLGİ GİRİŞİ'!W39="","",'BİLGİ GİRİŞİ'!W39) ->  | T21: =IF('BİLGİ GİRİŞİ'!T39="","",'BİLGİ GİRİŞİ'!T39) ->  | X21: =IF('BİLGİ GİRİŞİ'!AB66="","",'BİLGİ GİRİŞİ'!AB66) ->  | AB21: =IF('BİLGİ GİRİŞİ'!AF66="","",'BİLGİ GİRİŞİ'!AF66) ->  | AF21: =IF('BİLGİ GİRİŞİ'!AJ66="","",'BİLGİ GİRİŞİ'!AJ66) ->  | AJ21: =IF('BİLGİ GİRİŞİ'!AN66="","",'BİLGİ GİRİŞİ'!AN66) ->  | AN21: =IF('BİLGİ GİRİŞİ'!AR66="","",'BİLGİ GİRİŞİ'!AR66) ->  | AR21: =IF('BİLGİ GİRİŞİ'!AV66="","",'BİLGİ GİRİŞİ'!AV66) -> 
A22: =IF('BİLGİ GİRİŞİ'!D40="","",'BİLGİ GİRİŞİ'!D40) ->  | B22: =IF('BİLGİ GİRİŞİ'!E40="","",'BİLGİ GİRİŞİ'!E40) ->  | P22: =IF('BİLGİ GİRİŞİ'!W40="","",'BİLGİ GİRİŞİ'!W40) ->  | T22: =IF('BİLGİ GİRİŞİ'!T40="","",'BİLGİ GİRİŞİ'!T40) ->  | X22: =IF('BİLGİ GİRİŞİ'!AB67="","",'BİLGİ GİRİŞİ'!AB67) ->  | AB22: =IF('BİLGİ GİRİŞİ'!AF67="","",'BİLGİ GİRİŞİ'!AF67) ->  | AF22: =IF('BİLGİ GİRİŞİ'!AJ67="","",'BİLGİ GİRİŞİ'!AJ67) ->  | AJ22: =IF('BİLGİ GİRİŞİ'!AN67="","",'BİLGİ GİRİŞİ'!AN67) ->  | AN22: =IF('BİLGİ GİRİŞİ'!AR67="","",'BİLGİ GİRİŞİ'!AR67) ->  | AR22: =IF('BİLGİ GİRİŞİ'!AV67="","",'BİLGİ GİRİŞİ'!AV67) -> 
A23: =IF('BİLGİ GİRİŞİ'!D41="","",'BİLGİ GİRİŞİ'!D41) ->  | B23: =IF('BİLGİ GİRİŞİ'!E41="","",'BİLGİ GİRİŞİ'!E41) ->  | P23: =IF('BİLGİ GİRİŞİ'!W41="","",'BİLGİ GİRİŞİ'!W41) ->  | T23: =IF('BİLGİ GİRİŞİ'!T41="","",'BİLGİ GİRİŞİ'!T41) ->  | X23: =IF('BİLGİ GİRİŞİ'!AB68="","",'BİLGİ GİRİŞİ'!AB68) ->  | AB23: =IF('BİLGİ GİRİŞİ'!AF68="","",'BİLGİ GİRİŞİ'!AF68) ->  | AF23: =IF('BİLGİ GİRİŞİ'!AJ68="","",'BİLGİ GİRİŞİ'!AJ68) ->  | AJ23: =IF('BİLGİ GİRİŞİ'!AN68="","",'BİLGİ GİRİŞİ'!AN68) ->  | AN23: =IF('BİLGİ GİRİŞİ'!AR68="","",'BİLGİ GİRİŞİ'!AR68) ->  | AR23: =IF('BİLGİ GİRİŞİ'!AV68="","",'BİLGİ GİRİŞİ'!AV68) -> 
A24: =IF('BİLGİ GİRİŞİ'!D42="","",'BİLGİ GİRİŞİ'!D42) ->  | B24: =IF('BİLGİ GİRİŞİ'!E42="","",'BİLGİ GİRİŞİ'!E42) ->  | P24: =IF('BİLGİ GİRİŞİ'!W42="","",'BİLGİ GİRİŞİ'!W42) ->  | T24: =IF('BİLGİ GİRİŞİ'!T42="","",'BİLGİ GİRİŞİ'!T42) ->  | X24: =IF('BİLGİ GİRİŞİ'!AB69="","",'BİLGİ GİRİŞİ'!AB69) ->  | AB24: =IF('BİLGİ GİRİŞİ'!AF69="","",'BİLGİ GİRİŞİ'!AF69) ->  | AF24: =IF('BİLGİ GİRİŞİ'!AJ69="","",'BİLGİ GİRİŞİ'!AJ69) ->  | AJ24: =IF('BİLGİ GİRİŞİ'!AN69="","",'BİLGİ GİRİŞİ'!AN69) ->  | AN24: =IF('BİLGİ GİRİŞİ'!AR69="","",'BİLGİ GİRİŞİ'!AR69) ->  | AR24: =IF('BİLGİ GİRİŞİ'!AV69="","",'BİLGİ GİRİŞİ'!AV69) -> 
A25: =IF('BİLGİ GİRİŞİ'!D43="","",'BİLGİ GİRİŞİ'!D43) ->  | B25: =IF('BİLGİ GİRİŞİ'!E43="","",'BİLGİ GİRİŞİ'!E43) ->  | P25: =IF('BİLGİ GİRİŞİ'!W43="","",'BİLGİ GİRİŞİ'!W43) ->  | T25: =IF('BİLGİ GİRİŞİ'!T43="","",'BİLGİ GİRİŞİ'!T43) ->  | X25: =IF('BİLGİ GİRİŞİ'!AB70="","",'BİLGİ GİRİŞİ'!AB70) ->  | AB25: =IF('BİLGİ GİRİŞİ'!AF70="","",'BİLGİ GİRİŞİ'!AF70) ->  | AF25: =IF('BİLGİ GİRİŞİ'!AJ70="","",'BİLGİ GİRİŞİ'!AJ70) ->  | AJ25: =IF('BİLGİ GİRİŞİ'!AN70="","",'BİLGİ GİRİŞİ'!AN70) ->  | AN25: =IF('BİLGİ GİRİŞİ'!AR70="","",'BİLGİ GİRİŞİ'!AR70) ->  | AR25: =IF('BİLGİ GİRİŞİ'!AV70="","",'BİLGİ GİRİŞİ'!AV70) -> 
A26: =IF('BİLGİ GİRİŞİ'!D44="","",'BİLGİ GİRİŞİ'!D44) ->  | B26: =IF('BİLGİ GİRİŞİ'!E44="","",'BİLGİ GİRİŞİ'!E44) ->  | P26: =IF('BİLGİ GİRİŞİ'!W44="","",'BİLGİ GİRİŞİ'!W44) ->  | T26: =IF('BİLGİ GİRİŞİ'!T44="","",'BİLGİ GİRİŞİ'!T44) ->  | X26: =IF('BİLGİ GİRİŞİ'!AB71="","",'BİLGİ GİRİŞİ'!AB71) ->  | AB26: =IF('BİLGİ GİRİŞİ'!AF71="","",'BİLGİ GİRİŞİ'!AF71) ->  | AF26: =IF('BİLGİ GİRİŞİ'!AJ71="","",'BİLGİ GİRİŞİ'!AJ71) ->  | AJ26: =IF('BİLGİ GİRİŞİ'!AN71="","",'BİLGİ GİRİŞİ'!AN71) ->  | AN26: =IF('BİLGİ GİRİŞİ'!AR71="","",'BİLGİ GİRİŞİ'!AR71) ->  | AR26: =IF('BİLGİ GİRİŞİ'!AV71="","",'BİLGİ GİRİŞİ'!AV71) -> 
A27: =IF('BİLGİ GİRİŞİ'!D45="","",'BİLGİ GİRİŞİ'!D45) ->  | B27: =IF('BİLGİ GİRİŞİ'!E45="","",'BİLGİ GİRİŞİ'!E45) ->  | P27: =IF('BİLGİ GİRİŞİ'!W45="","",'BİLGİ GİRİŞİ'!W45) ->  | T27: =IF('BİLGİ GİRİŞİ'!T45="","",'BİLGİ GİRİŞİ'!T45) ->  | X27: =IF('BİLGİ GİRİŞİ'!AB72="","",'BİLGİ GİRİŞİ'!AB72) ->  | AB27: =IF('BİLGİ GİRİŞİ'!AF72="","",'BİLGİ GİRİŞİ'!AF72) ->  | AF27: =IF('BİLGİ GİRİŞİ'!AJ72="","",'BİLGİ GİRİŞİ'!AJ72) ->  | AJ27: =IF('BİLGİ GİRİŞİ'!AN72="","",'BİLGİ GİRİŞİ'!AN72) ->  | AN27: =IF('BİLGİ GİRİŞİ'!AR72="","",'BİLGİ GİRİŞİ'!AR72) ->  | AR27: =IF('BİLGİ GİRİŞİ'!AV72="","",'BİLGİ GİRİŞİ'!AV72) -> 
A28: =IF('BİLGİ GİRİŞİ'!D46="","",'BİLGİ GİRİŞİ'!D46) ->  | B28: =IF('BİLGİ GİRİŞİ'!E46="","",'BİLGİ GİRİŞİ'!E46) ->  | P28: =IF('BİLGİ GİRİŞİ'!W46="","",'BİLGİ GİRİŞİ'!W46) ->  | T28: =IF('BİLGİ GİRİŞİ'!T46="","",'BİLGİ GİRİŞİ'!T46) ->  | X28: =IF('BİLGİ GİRİŞİ'!AB73="","",'BİLGİ GİRİŞİ'!AB73) ->  | AB28: =IF('BİLGİ GİRİŞİ'!AF73="","",'BİLGİ GİRİŞİ'!AF73) ->  | AF28: =IF('BİLGİ GİRİŞİ'!AJ73="","",'BİLGİ GİRİŞİ'!AJ73) ->  | AJ28: =IF('BİLGİ GİRİŞİ'!AN73="","",'BİLGİ GİRİŞİ'!AN73) ->  | AN28: =IF('BİLGİ GİRİŞİ'!AR73="","",'BİLGİ GİRİŞİ'!AR73) ->  | AR28: =IF('BİLGİ GİRİŞİ'!AV73="","",'BİLGİ GİRİŞİ'!AV73) -> 
A29: =IF('BİLGİ GİRİŞİ'!D47="","",'BİLGİ GİRİŞİ'!D47) ->  | B29: =IF('BİLGİ GİRİŞİ'!E47="","",'BİLGİ GİRİŞİ'!E47) ->  | P29: =IF('BİLGİ GİRİŞİ'!W47="","",'BİLGİ GİRİŞİ'!W47) ->  | T29: =IF('BİLGİ GİRİŞİ'!T47="","",'BİLGİ GİRİŞİ'!T47) ->  | X29: =IF('BİLGİ GİRİŞİ'!AB74="","",'BİLGİ GİRİŞİ'!AB74) ->  | AB29: =IF('BİLGİ GİRİŞİ'!AF74="","",'BİLGİ GİRİŞİ'!AF74) ->  | AF29: =IF('BİLGİ GİRİŞİ'!AJ74="","",'BİLGİ GİRİŞİ'!AJ74) ->  | AJ29: =IF('BİLGİ GİRİŞİ'!AN74="","",'BİLGİ GİRİŞİ'!AN74) ->  | AN29: =IF('BİLGİ GİRİŞİ'!AR74="","",'BİLGİ GİRİŞİ'!AR74) ->  | AR29: =IF('BİLGİ GİRİŞİ'!AV74="","",'BİLGİ GİRİŞİ'!AV74) -> 
A30: =IF('BİLGİ GİRİŞİ'!D48="","",'BİLGİ GİRİŞİ'!D48) ->  | B30: =IF('BİLGİ GİRİŞİ'!E48="","",'BİLGİ GİRİŞİ'!E48) ->  | P30: =IF('BİLGİ GİRİŞİ'!W48="","",'BİLGİ GİRİŞİ'!W48) ->  | T30: =IF('BİLGİ GİRİŞİ'!T48="","",'BİLGİ GİRİŞİ'!T48) ->  | X30: =IF('BİLGİ GİRİŞİ'!AB75="","",'BİLGİ GİRİŞİ'!AB75) ->  | AB30: =IF('BİLGİ GİRİŞİ'!AF75="","",'BİLGİ GİRİŞİ'!AF75) ->  | AF30: =IF('BİLGİ GİRİŞİ'!AJ75="","",'BİLGİ GİRİŞİ'!AJ75) ->  | AJ30: =IF('BİLGİ GİRİŞİ'!AN75="","",'BİLGİ GİRİŞİ'!AN75) ->  | AN30: =IF('BİLGİ GİRİŞİ'!AR75="","",'BİLGİ GİRİŞİ'!AR75) ->  | AR30: =IF('BİLGİ GİRİŞİ'!AV75="","",'BİLGİ GİRİŞİ'!AV75) -> 
A31: =IF('BİLGİ GİRİŞİ'!D49="","",'BİLGİ GİRİŞİ'!D49) ->  | B31: =IF('BİLGİ GİRİŞİ'!E49="","",'BİLGİ GİRİŞİ'!E49) ->  | P31: =IF('BİLGİ GİRİŞİ'!W49="","",'BİLGİ GİRİŞİ'!W49) ->  | T31: =IF('BİLGİ GİRİŞİ'!T49="","",'BİLGİ GİRİŞİ'!T49) ->  | X31: =IF('BİLGİ GİRİŞİ'!AB76="","",'BİLGİ GİRİŞİ'!AB76) ->  | AB31: =IF('BİLGİ GİRİŞİ'!AF76="","",'BİLGİ GİRİŞİ'!AF76) ->  | AF31: =IF('BİLGİ GİRİŞİ'!AJ76="","",'BİLGİ GİRİŞİ'!AJ76) ->  | AJ31: =IF('BİLGİ GİRİŞİ'!AN76="","",'BİLGİ GİRİŞİ'!AN76) ->  | AN31: =IF('BİLGİ GİRİŞİ'!AR76="","",'BİLGİ GİRİŞİ'!AR76) ->  | AR31: =IF('BİLGİ GİRİŞİ'!AV76="","",'BİLGİ GİRİŞİ'!AV76) -> 
A32: TOPLAM | X32: =SUM(X12:X31) -> 30000 | AB32: =SUM(AB12:AB31) -> 388000 | AF32: =SUM(AF12:AF31) -> 26000 | AJ32: =SUM(AJ12:AJ31) -> 334000 | AN32: =SUM(AN12:AN31) -> 28000 | AR32: =SUM(AR12:AR31) -> 358000
A34: EN UYGUN (DÜŞÜK) TEKLİFİ VEREN VE TEKLİFİ UYGUN GÖRÜLEN GERÇEK/TÜZEL KİŞİ
A35: ADI | X35: GERÇEK/TÜZEL KİŞİ'NİN ADRESİ | AN35: TEKLİF ETTİĞİ FİYAT
A36: =IF('BİLGİ GİRİŞİ'!D81="","",'BİLGİ GİRİŞİ'!D81) -> B GERÇEK/TÜZEL KİŞİSİ | X36: =IF('BİLGİ GİRİŞİ'!T81="","",'BİLGİ GİRİŞİ'!T81) -> Bulanık/MUŞ | AN36: =IF('BİLGİ GİRİŞİ'!AF81="","",'BİLGİ GİRİŞİ'!AF81) -> 334000
A38: =CONCATENATE(" Kamu İhale Kanunu'nun ",IF('BİLGİ GİRİŞİ'!O10="",".............................................................................",'BİLGİ GİRİŞİ'!O10)," maddesine göre Doğrudan Temin yoluyla satın alınacak Mal/Hizmet/Yapım İşi'ne ilişkin yapılan piyasa araştırması sonucu gerçek/tüzel kişilerce teklif edilen fiyatlar"&" tarafımızca değerlendirilmiş olup Mal'ın/Hizmet'in/Yapım İşi'nin yukarıda bilgileri verilen ve teklifi uygun görülen gerçek/tüzel kişiden alınması uygun görülmüştür. "& TEXT(IF('BİLGİ GİRİŞİ'!O22="","…../…../……..",'BİLGİ GİRİŞİ'!O22),"gg.aa.yyyy ")) -> Kamu İhale Kanunu'nun 22/d maddesine göre Doğrudan Temin yoluyla satın alınacak Mal/Hizmet/Yapım İşi'ne ilişkin yapılan piyasa araştırması sonucu gerçek/tüzel kişilerce teklif edilen fiyatlar tarafımızca değerlendirilmiş olup Mal'ın/Hizmet'in/Yapım İşi'nin yukarıda bilgileri verilen ve teklifi uygun görülen gerçek/tüzel kişiden alınması uygun görülmüştür. 08.03.2023
AF42: =IF(AF46="","",IF('BİLGİ GİRİŞİ'!AB16="","",'BİLGİ GİRİŞİ'!AB16)) -> Piyasa Araştırma Görevlisi
A43: =IF(A46="","",IF('BİLGİ GİRİŞİ'!AH16="","",'BİLGİ GİRİŞİ'!AH16)) -> Piyasa Araştırma Görevlisi | P43: =IF(P46="","",IF('BİLGİ GİRİŞİ'!AN16="","",'BİLGİ GİRİŞİ'!AN16)) -> 
A46: =IF('BİLGİ GİRİŞİ'!AH17="","",'BİLGİ GİRİŞİ'!AH17) -> Ayşe YILDIZ | P46: =IF('BİLGİ GİRİŞİ'!AN17="","",'BİLGİ GİRİŞİ'!AN17) ->  | AF46: =IF('BİLGİ GİRİŞİ'!AB17="","",'BİLGİ GİRİŞİ'!AB17) -> Ahmet DEMİR
A47: =IF('BİLGİ GİRİŞİ'!AH18="","",'BİLGİ GİRİŞİ'!AH18) -> Öğretmen 1 | P47: =IF(P46="","",IF('BİLGİ GİRİŞİ'!AN18="","",'BİLGİ GİRİŞİ'!AN18)) ->  | AF47: =IF('BİLGİ GİRİŞİ'!AB18="","",'BİLGİ GİRİŞİ'!AB18) -> Müdür Yardımcısı 1

Sheet 8
A2: İdarenin Adı | K2: : | L2: =IF('BİLGİ GİRİŞİ'!O8="","",'BİLGİ GİRİŞİ'!O8) -> Atatürk İlkokulu Müdürlüğü
A3: Doğrudan Temin Numarası | K3: : | L3: =IF('BİLGİ GİRİŞİ'!O11="","",'BİLGİ GİRİŞİ'!O11) -> 22DT1211930
A4: Mal/Hizmet/Yapım Adı, Niteliği | K4: : | L4: =IF('BİLGİ GİRİŞİ'!O9="","",'BİLGİ GİRİŞİ'!O9) -> Bilişim Malzemeleri Alımı
A5: Alım/Görevlendirme Onay Tarihi/sayısı | K5: : | L5: =IF('BİLGİ GİRİŞİ'!O15="","",'BİLGİ GİRİŞİ'!O15) -> 2023-03-06 | P5: / | Q5: =IF('BİLGİ GİRİŞİ'!S15="","",'BİLGİ GİRİŞİ'!S15) -> 456789123
A6: MUAYENE VE KABUL TUTANAĞI (DOĞRUDAN TEMİN SONUÇ ONAY BELGESİ)
A8: MAL'IN/HİZMET'İN/YAPIM İŞİ'NİN
A9: S | B9: Kalem/KısımBilgileri | X9: Birimi | AB9: Miktarı
A10: =IF('BİLGİ GİRİŞİ'!D30="","",'BİLGİ GİRİŞİ'!D30) -> 1 | B10: =IF('BİLGİ GİRİŞİ'!E30="","",'BİLGİ GİRİŞİ'!E30) -> AIO (All In One) Masaüstü Bilgisayar | X10: =IF('BİLGİ GİRİŞİ'!W30="","",'BİLGİ GİRİŞİ'!W30) -> Adet | AB10: =IF('BİLGİ GİRİŞİ'!T30="","",'BİLGİ GİRİŞİ'!T30) -> 20
A11: =IF('BİLGİ GİRİŞİ'!D31="","",'BİLGİ GİRİŞİ'!D31) -> 2 | B11: =IF('BİLGİ GİRİŞİ'!E31="","",'BİLGİ GİRİŞİ'!E31) -> Fotokopi Makinesi | X11: =IF('BİLGİ GİRİŞİ'!W31="","",'BİLGİ GİRİŞİ'!W31) -> Adet | AB11: =IF('BİLGİ GİRİŞİ'!T31="","",'BİLGİ GİRİŞİ'!T31) -> 10
A12: =IF('BİLGİ GİRİŞİ'!D32="","",'BİLGİ GİRİŞİ'!D32) -> 3 | B12: =IF('BİLGİ GİRİŞİ'!E32="","",'BİLGİ GİRİŞİ'!E32) -> Projektör | X12: =IF('BİLGİ GİRİŞİ'!W32="","",'BİLGİ GİRİŞİ'!W32) -> Adet | AB12: =IF('BİLGİ GİRİŞİ'!T32="","",'BİLGİ GİRİŞİ'!T32) -> 4
A13: =IF('BİLGİ GİRİŞİ'!D33="","",'BİLGİ GİRİŞİ'!D33) ->  | B13: =IF('BİLGİ GİRİŞİ'!E33="","",'BİLGİ GİRİŞİ'!E33) ->  | X13: =IF('BİLGİ GİRİŞİ'!W33="","",'BİLGİ GİRİŞİ'!W33) ->  | AB13: =IF('BİLGİ GİRİŞİ'!T33="","",'BİLGİ GİRİŞİ'!T33) -> 
A14: =IF('BİLGİ GİRİŞİ'!D34="","",'BİLGİ GİRİŞİ'!D34) ->  | B14: =IF('BİLGİ GİRİŞİ'!E34="","",'BİLGİ GİRİŞİ'!E34) ->  | X14: =IF('BİLGİ GİRİŞİ'!W34="","",'BİLGİ GİRİŞİ'!W34) ->  | AB14: =IF('BİLGİ GİRİŞİ'!T34="","",'BİLGİ GİRİŞİ'!T34) -> 
A15: =IF('BİLGİ GİRİŞİ'!D35="","",'BİLGİ GİRİŞİ'!D35) ->  | B15: =IF('BİLGİ GİRİŞİ'!E35="","",'BİLGİ GİRİŞİ'!E35) ->  | X15: =IF('BİLGİ GİRİŞİ'!W35="","",'BİLGİ GİRİŞİ'!W35) ->  | AB15: =IF('BİLGİ GİRİŞİ'!T35="","",'BİLGİ GİRİŞİ'!T35) -> 
A16: =IF('BİLGİ GİRİŞİ'!D36="","",'BİLGİ GİRİŞİ'!D36) ->  | B16: =IF('BİLGİ GİRİŞİ'!E36="","",'BİLGİ GİRİŞİ'!E36) ->  | X16: =IF('BİLGİ GİRİŞİ'!W36="","",'BİLGİ GİRİŞİ'!W36) ->  | AB16: =IF('BİLGİ GİRİŞİ'!T36="","",'BİLGİ GİRİŞİ'!T36) -> 
A17: =IF('BİLGİ GİRİŞİ'!D37="","",'BİLGİ GİRİŞİ'!D37) ->  | B17: =IF('BİLGİ GİRİŞİ'!E37="","",'BİLGİ GİRİŞİ'!E37) ->  | X17: =IF('BİLGİ GİRİŞİ'!W37="","",'BİLGİ GİRİŞİ'!W37) ->  | AB17: =IF('BİLGİ GİRİŞİ'!T37="","",'BİLGİ GİRİŞİ'!T37) -> 
A18: =IF('BİLGİ GİRİŞİ'!D38="","",'BİLGİ GİRİŞİ'!D38) ->  | B18: =IF('BİLGİ GİRİŞİ'!E38="","",'BİLGİ GİRİŞİ'!E38) ->  | X18: =IF('BİLGİ GİRİŞİ'!W38="","",'BİLGİ GİRİŞİ'!W38) ->  | AB18: =IF('BİLGİ GİRİŞİ'!T38="","",'BİLGİ GİRİŞİ'!T38) -> 
A19: =IF('BİLGİ GİRİŞİ'!D39="","",'BİLGİ GİRİŞİ'!D39) ->  | B19: =IF('BİLGİ GİRİŞİ'!E39="","",'BİLGİ GİRİŞİ'!E39) ->  | X19: =IF('BİLGİ GİRİŞİ'!W39="","",'BİLGİ GİRİŞİ'!W39) ->  | AB19: =IF('BİLGİ GİRİŞİ'!T39="","",'BİLGİ GİRİŞİ'!T39) -> 
A20: =IF('BİLGİ GİRİŞİ'!D40="","",'BİLGİ GİRİŞİ'!D40) ->  | B20: =IF('BİLGİ GİRİŞİ'!E40="","",'BİLGİ GİRİŞİ'!E40) ->  | X20: =IF('BİLGİ GİRİŞİ'!W40="","",'BİLGİ GİRİŞİ'!W40) ->  | AB20: =IF('BİLGİ GİRİŞİ'!T40="","",'BİLGİ GİRİŞİ'!T40) -> 
A21: =IF('BİLGİ GİRİŞİ'!D41="","",'BİLGİ GİRİŞİ'!D41) ->  | B21: =IF('BİLGİ GİRİŞİ'!E41="","",'BİLGİ GİRİŞİ'!E41) ->  | X21: =IF('BİLGİ GİRİŞİ'!W41="","",'BİLGİ GİRİŞİ'!W41) ->  | AB21: =IF('BİLGİ GİRİŞİ'!T41="","",'BİLGİ GİRİŞİ'!T41) -> 
A22: =IF('BİLGİ GİRİŞİ'!D42="","",'BİLGİ GİRİŞİ'!D42) ->  | B22: =IF('BİLGİ GİRİŞİ'!E42="","",'BİLGİ GİRİŞİ'!E42) ->  | X22: =IF('BİLGİ GİRİŞİ'!W42="","",'BİLGİ GİRİŞİ'!W42) ->  | AB22: =IF('BİLGİ GİRİŞİ'!T42="","",'BİLGİ GİRİŞİ'!T42) -> 
A23: =IF('BİLGİ GİRİŞİ'!D43="","",'BİLGİ GİRİŞİ'!D43) ->  | B23: =IF('BİLGİ GİRİŞİ'!E43="","",'BİLGİ GİRİŞİ'!E43) ->  | X23: =IF('BİLGİ GİRİŞİ'!W43="","",'BİLGİ GİRİŞİ'!W43) ->  | AB23: =IF('BİLGİ GİRİŞİ'!T43="","",'BİLGİ GİRİŞİ'!T43) -> 
A24: =IF('BİLGİ GİRİŞİ'!D44="","",'BİLGİ GİRİŞİ'!D44) ->  | B24: =IF('BİLGİ GİRİŞİ'!E44="","",'BİLGİ GİRİŞİ'!E44) ->  | X24: =IF('BİLGİ GİRİŞİ'!W44="","",'BİLGİ GİRİŞİ'!W44) ->  | AB24: =IF('BİLGİ GİRİŞİ'!T44="","",'BİLGİ GİRİŞİ'!T44) -> 
A25: =IF('BİLGİ GİRİŞİ'!D45="","",'BİLGİ GİRİŞİ'!D45) ->  | B25: =IF('BİLGİ GİRİŞİ'!E45="","",'BİLGİ GİRİŞİ'!E45) ->  | X25: =IF('BİLGİ GİRİŞİ'!W45="","",'BİLGİ GİRİŞİ'!W45) ->  | AB25: =IF('BİLGİ GİRİŞİ'!T45="","",'BİLGİ GİRİŞİ'!T45) -> 
A26: =IF('BİLGİ GİRİŞİ'!D46="","",'BİLGİ GİRİŞİ'!D46) ->  | B26: =IF('BİLGİ GİRİŞİ'!E46="","",'BİLGİ GİRİŞİ'!E46) ->  | X26: =IF('BİLGİ GİRİŞİ'!W46="","",'BİLGİ GİRİŞİ'!W46) ->  | AB26: =IF('BİLGİ GİRİŞİ'!T46="","",'BİLGİ GİRİŞİ'!T46) -> 
A27: =IF('BİLGİ GİRİŞİ'!D47="","",'BİLGİ GİRİŞİ'!D47) ->  | B27: =IF('BİLGİ GİRİŞİ'!E47="","",'BİLGİ GİRİŞİ'!E47) ->  | X27: =IF('BİLGİ GİRİŞİ'!W47="","",'BİLGİ GİRİŞİ'!W47) ->  | AB27: =IF('BİLGİ GİRİŞİ'!T47="","",'BİLGİ GİRİŞİ'!T47) -> 
A28: =IF('BİLGİ GİRİŞİ'!D48="","",'BİLGİ GİRİŞİ'!D48) ->  | B28: =IF('BİLGİ GİRİŞİ'!E48="","",'BİLGİ GİRİŞİ'!E48) ->  | X28: =IF('BİLGİ GİRİŞİ'!W48="","",'BİLGİ GİRİŞİ'!W48) ->  | AB28: =IF('BİLGİ GİRİŞİ'!T48="","",'BİLGİ GİRİŞİ'!T48) -> 
A29: =IF('BİLGİ GİRİŞİ'!D49="","",'BİLGİ GİRİŞİ'!D49) ->  | B29: =IF('BİLGİ GİRİŞİ'!E49="","",'BİLGİ GİRİŞİ'!E49) ->  | X29: =IF('BİLGİ GİRİŞİ'!W49="","",'BİLGİ GİRİŞİ'!W49) ->  | AB29: =IF('BİLGİ GİRİŞİ'!T49="","",'BİLGİ GİRİŞİ'!T49) -> 
A31: S | B31: TEKLİF VEREN GERÇEK/TÜZEL KİŞİLER | X31: TEKLİF FİYATLARI
A32: 1 | B32: =IF('BİLGİ GİRİŞİ'!AB55="","",'BİLGİ GİRİŞİ'!AB55) -> A GERÇEK/TÜZEL KİŞİSİ | X32: =IF('BİLGİ GİRİŞİ'!AF77="","",'BİLGİ GİRİŞİ'!AF77) -> 388000
A33: 2 | B33: =IF('BİLGİ GİRİŞİ'!AJ55="","",'BİLGİ GİRİŞİ'!AJ55) -> B GERÇEK/TÜZEL KİŞİSİ | X33: =IF('BİLGİ GİRİŞİ'!AN77="","",'BİLGİ GİRİŞİ'!AN77) -> 334000
A34: 3 | B34: =IF('BİLGİ GİRİŞİ'!AR55="","",'BİLGİ GİRİŞİ'!AR55) -> D GERÇEK/TÜZEL KİŞİSİ | X34: =IF('BİLGİ GİRİŞİ'!AV77="","",'BİLGİ GİRİŞİ'!AV77) -> 358000
A36: EN UYGUN (DÜŞÜK) TEKLİFİ VEREN VE TEKLİFİ UYGUN GÖRÜLEN GERÇEK/TÜZEL KİŞİ
A37: S | B37: Adı | X37: Teklif Fiyatı
A38: 1 | B38: =IF('BİLGİ GİRİŞİ'!D81="","",'BİLGİ GİRİŞİ'!D81) -> B GERÇEK/TÜZEL KİŞİSİ | X38: =IF('BİLGİ GİRİŞİ'!AF81="","",'BİLGİ GİRİŞİ'!AF81) -> 334000
A40: Yukarıda bilgileri verilen Mal/Hizmet/Yapım İşi, idarenin belirlediği şartlar dahilinde muayenesi yapılmış olup kabule engel herhangi bir durum tespit edilmemiştir. Söz konusu işin yukarıda alım yapılması uygun görülen gerçek/tüzel kişiden Doğrudan Temin yoluyla satın alınması hususunu; Olurlarınıza arz ederim/ederiz.
A45: =IF(A48="","",IF('BİLGİ GİRİŞİ'!AH21="","",'BİLGİ GİRİŞİ'!AH21)) -> Muayene ve Kabul Görevlisi | K45: =IF(K48="","",IF('BİLGİ GİRİŞİ'!AN21="","",'BİLGİ GİRİŞİ'!AN21)) ->  | U45: =IF(U48="","",IF('BİLGİ GİRİŞİ'!AB21="","",'BİLGİ GİRİŞİ'!AB21)) -> Muayene ve Kabul Görevlisi
A46: =IF(A48="","",IF('BİLGİ GİRİŞİ'!O23="","…../…../……..",'BİLGİ GİRİŞİ'!O23)) -> 2023-03-08 | K46: =IF(K48="","",IF('BİLGİ GİRİŞİ'!O23="","…../…../……..",'BİLGİ GİRİŞİ'!O23)) ->  | U46: =IF(U48="","",IF('BİLGİ GİRİŞİ'!O23="","…../…../……..",'BİLGİ GİRİŞİ'!O23)) -> 2023-03-08
A48: =IF('BİLGİ GİRİŞİ'!AH22="","",'BİLGİ GİRİŞİ'!AH22) -> Fatma GÜNEŞ | K48: =IF('BİLGİ GİRİŞİ'!AN22="","",'BİLGİ GİRİŞİ'!AN22) ->  | U48: =IF('BİLGİ GİRİŞİ'!AB22="","",'BİLGİ GİRİŞİ'!AB22) -> Mehmet ÇELİK
A49: =IF('BİLGİ GİRİŞİ'!AH23="","",'BİLGİ GİRİŞİ'!AH23) -> Öğretmen 2 | K49: =IF(K48="","",IF('BİLGİ GİRİŞİ'!AN23="","",'BİLGİ GİRİŞİ'!AN23)) ->  | U49: =IF('BİLGİ GİRİŞİ'!AB23="","",'BİLGİ GİRİŞİ'!AB23) -> Müdür Yardımcısı 2
A52: =IF(A55="","",IF('BİLGİ GİRİŞİ'!AT21="","",'BİLGİ GİRİŞİ'!AT21)) -> OLUR/UYGUNDUR
A53: =IF(A55="","",IF('BİLGİ GİRİŞİ'!O23="","…../…../……..",'BİLGİ GİRİŞİ'!O23)) -> 2023-03-08
A55: =IF('BİLGİ GİRİŞİ'!AT22="","",'BİLGİ GİRİŞİ'!AT22) -> Mustafa AYDIN
A56: =IF(A55="","",'BİLGİ GİRİŞİ'!AT23) -> Okul Müdürü
A58: Ek: Piyasa Fiyat Araştırma Tutanağı

Sheet KAPAK
A4: T.C.
A5: =IF('BİLGİ GİRİŞİ'!O7="","",'BİLGİ GİRİŞİ'!O7) -> BULANIK KAYMAKAMLIĞI
A6: =IF('BİLGİ GİRİŞİ'!O8="","",'BİLGİ GİRİŞİ'!O8) -> Atatürk İlkokulu Müdürlüğü
A10: =IF('BİLGİ GİRİŞİ'!O11="","",CONCATENATE('BİLGİ GİRİŞİ'!O11," DOĞRUDAN TEMİN NUMARALI")) -> 22DT1211930 DOĞRUDAN TEMİN NUMARALI
A11: =UPPER(IF('BİLGİ GİRİŞİ'!O9="","",'BİLGİ GİRİŞİ'!O9)) -> BİLİŞİM MALZEMELERİ ALIMI
A15: DOĞRUDAN TEMİN İŞLEM DOSYASI DİZİ PUSULASI
A16: S.N | B16: Belge Adı | AB16: Sayfa Sayısı
A17: 1 | B17: Ödeme Emri Belgesi | AB17: 1
A18: 2 | B18: Fatura | AB18: 1
A19: 3 | B19: Harcama Talimatı | AB19: 1
A20: 4 | B20: Taşınır İşlem Fişi | AB20: 1
A21: 5 | B21: Varlık İşlem Fişi | AB21: 1
A22: 6 | B22: Vergi Borcu Yok Belgesi (Yüklenici) | AB22: 1
A23: 7 | B23: Alım/Görevlendirme Onayı | AB23: 1
A24: 8 | B24: Yaklaşık Maliyet Araştırma (Piyasa Fiyatları) Belgeleri/Mektupları | AB24: 3
A25: 9 | B25: Doğrudan Temin Onay Belgesi ve Eki Yaklaşık Maliyet Hesap Cetveli | AB25: 2
A26: 10 | B26: Piyasa Fiyat Araştırma (Teklif Edilen Fiyalar) Belgeleri/Mektupları | AB26: 3
A27: 11 | B27: Muayene ve Kabul Tutanağı (Doğrudan Temin Sonuç Onay Belgesi) ve Eki Piyasa Fiyat Araştırma Tutanağı | AB27: 2
A33: TOPLAM | AB33: =SUM(AB17:AB27) -> 17
A36: İş Bu Dosya | D36: =(AB33) -> 17 | F36: Sayfadan İbarettir.
A41: =IF('BİLGİ GİRİŞİ'!AT22="","",'BİLGİ GİRİŞİ'!AT22) -> Mustafa AYDIN
A42: =IF(A41="","",'BİLGİ GİRİŞİ'!AT23) -> Okul Müdürü
